{"text_format":"1","workbook":"xlsx","n_sheets":16,"sheets":["Administratif","Profil compétences","Data","E1","E2","E3","E4","E5","E6","E7","E8","E9","E10","E11","E12","Synthèse"],"not_rendered":{"charts":12,"images":0,"macros":1,"external_links":0,"defined_names":5,"comments":12,"pivot_tables":0},"unopened":[],"bounds":{"document_bytes":16777216,"sheet_cells":100000,"rows_first":2000,"rows_last":500,"rows_between":2000,"halvings":0,"cell_chars":16384,"cell_head_chars":4096},"cells_cut":0,"cells_raw":0,"read":"whole","date_system":"1900"}

{"sheet":"Administratif","index":0,"n_rows":21,"n_cols":10,"rows_kept":21,"cut":false,"hidden":false,"merged":[[0,0,1,1]]}
["Classe de CS \"Desserts de restaurant\""]
[]
["ACADEMIE :"]
[]
["SESSION D'EXAMEN : "]
[]
["Non du centre de formation :"]
[]
["La classe CS \"DR\"","NOM/PRENOM",null,"Lieu PFMP 1/Entreprise","Lieu PFMP 2/Entreprise","Lieu PFMP 3/Entreprise",null,"Nom Tuteur/Maitre d'apprentissage","Nom Tuteur/Maitre d'apprentissage","Nom Tuteur/Maitre d'apprentissage"]
["Élève/apprenti 1"]
["Élève/apprenti 2"]
["Élève/apprenti 3"]
["Élève/apprenti 4"]
["Élève/apprenti 5"]
["Élève/apprenti 6"]
["Élève/apprenti 7"]
["Élève/apprenti 8"]
["Élève/apprenti 9"]
["Élève/apprenti 10"]
["Élève/apprenti 11"]
["Élève/apprenti 12"]

{"sheet":"Profil compétences","index":1,"n_rows":48,"n_cols":5,"rows_kept":48,"cut":false,"hidden":false,"merged":[[2,1,2,4],[5,5,8,5],[12,0,12,4],[13,0,14,0],[13,1,13,2],[13,3,13,4],[10,0,10,4],[11,0,11,4],[45,1,45,2],[45,3,45,4],[38,3,38,4],[33,0,33,4],[34,0,34,4],[35,0,36,0],[35,1,35,2],[35,3,35,4]]}
[]
[]
[null,"Critères pour identifier les paliers de professionnalisation"]
[null,"Palier 1 -Novice","Palier  2 Exécutant","Palier 3 - Averti   ","Palier 4 - Expert"]
[null,"Iimiter,exécuter","Exécuter, appliquer","Adapter, anticiper","Anticiper, concevoir"]
["Niveau de compétences  →","Connaissance superficielle orientée vers la réussite de la tâche en cours","Connaissance globale orientée vers la connexion des éléments","Connaissance fonctionnelle orientée vers la détermination des éléments clés","Connaissance approfondie orientée vers la compréhension des processus"]
["Degré d'analyse  →","Trouver les indices pertinents","Comprendre les buts des activités","Élargir le répertoire des actions disponibles","Coordonner les activités dans le collectif"]
["Degré d'autonomie  →","Réalisation de tâches guidées en contexte connu","Application de procédures en contextes variés","Résolution de problèmes ouverts en contexte variés","Résolution de problèmes inconnus en contextes imprévisibles"]
[]
[]
["Comment positioner le palier de compétences atteint par l’apprenant ?\nPour postionner le niveau de compétence atteint par le candidat, l’évaluateur peut s’appuyer sur le tableau des indicateurs de performance."]
["EP 1 : proposition d’indicateurs de performance"]
["Indicateurs de performance épreuve EP1"]
["Compétences opérationnelles Pôle 1","Candidat peu ou pas autonome",null,"Candidat autonome"]
[null,"MTI\nNiveau « NOVICE »","MI\nNiveau « EXECUTANT »","BM\nNiveau « AVERTI »","TBM\n(résultat attendu du référentiel)"]
["Planifier son travail","Plusieurs étapes sont manquantes L’ordonnancement est incohérent\nLes temps de fabrication ne sont pas conformes aux réalités professionnelles","Une des étapes est manquante L’ordonnancement est incohérent\nLes temps de fabrication sont partiellement conformes","Toutes les étapes de fabrication sont présentes L’ordonnancement est cohérent mais quelques erreurs subsistent\nToutes les étapes de fabrication sont estimées en temps, mais certaines estimations ne sont pas en phase avec une réalité professionnelle","Les productions sont planifiées de manière logique, rationnelle, adaptée au temps imparti et aux consignes de production"]
["Organiser son poste de travail","Le poste de travail n’est pas du tout organisé","Le poste de travail est partiellement organisé L’organisation n’est pas rationnelle","Le poste de travail est organisé\nL’organisation n’est pas totalement rationnelle","Le poste de travail est toujours organisé de manière rationnelle pour réaliser les productions"]
["Réaliser des pâtes et appareils","La pâte et/ou l’appareil n’est pas réalisé ou pas utilisable","La pâte et/ou l’appareil est réalisé\nLa technique utilisée n’est pas adaptée","La pâte et/ou l’appareil est réalisé\nLa technique utilisée est partiellement acquise","La technique et la recette permettent d’obtenir la pâte ou l’appareil adapté à la production"]
["Apprêter des pâtes et appareils","La technique n’est pas mise en œuvre","La technique est mise en œuvre mais non conforme aux attentes de production","La technique est mise en œuvre et conforme aux attentes de production Des irrégularités sont constatées","Les mises en œuvre des pâtes sont conformes aux attentes de production"]
["Cuire des pâtes et appareils","La cuisson ne respecte pas les conditions : matériel utilisé, temps, température","Une des conditions de cuisson n’est pas respectée","La cuisson est conforme La pâte et/ou l’appareil manque d’homogénéité","La cuisson des pâtes est conforme aux attentes de production"]
["Préparer des crèmes, mousses, ganaches et leurs dérivés","Les crèmes, mousses, ganaches et leurs dérivés ne sont pas réalisé ou pas utilisables","Les crèmes, mousses, ganaches et leurs dérivés sont réalisés\nLa technique utilisée n’est pas maitrisée","Les crèmes, mousses, ganaches et leurs dérivés sont réalisés\nLa technique utilisée est partiellement acquise","La technique et la recette permettent d’obtenir des préparations à la consistance et l’homogénéité adaptées à la production"]
["Préparer des fabrications glacées","Les étapes de fabrications ne sont pas réalisées","Les étapes de fabrications sont approximatives","Les étapes de fabrications sont réalisées\nLa consistance et/ou l’homogénéité présente des irrégularités","Les fabrications glacées ont une consistance et une homogénéité conformes à la production et au guide des appellations des desserts glacés"]
["Transformer les végétaux","La transformation n’est pas réalisée\nLes végétaux ne sont pas utilisables","La transformation est réalisée Les végétaux ne sont pas utilisables","La transformation est réalisée Les végétaux sont utilisables sans respect des consignes","La transformation crue ou cuite est réalisée dans le respect des consignes"]
["Réaliser des inserts","L’insert n’est pas réalisé","L’insert ne peut pas être mis en œuvre","L’insert peut être mis en œuvre\nIl ne respecte pas la commande","Les techniques utilisées permettent d’obtenir une texture de l’insert conforme à la commande"]
["Monter et assembler des préparations","La technique de montage n’est pas conforme","La technique du montage est approximative","Le montage est conforme La proportionnalité n’est pas respectée","Le produit fini est net, régulier et  conforme aux consignes de montage"]
["Réaliser des éléments de finitions","Aucun élément de finition n’est présent sur l’assiette","Les éléments de finition sont présents mais manquent de soin ou n’apportent aucune plus-value au dessert","Les éléments de finition sont adaptés mais manque de finesse","La finition est esthétique, harmonieuse et apporte une valeur ajoutée au dessert."]
["Apprécier et rectifier la production","Le responsable hiérarchique n’est pas informé des erreurs commises.\nL’appréciation de la production n’est pas objective et aucune rectification n’est proposée","L’appréciation manque d’objectivité.\nLe responsable hiérarchique est informé.\nLes rectifications proposées ne permettent pas de corriger les erreurs réalisées.","L’appréciation est objective Le responsable hiérarchique est informé.\nLes rectifications proposées ne permettent pas de corriger toutes les erreurs réalisées.","Les qualités et les défauts sont identifiés.\nLe responsable hiérarchique est informé.\nUne action corrective est proposée si possible"]
["Configurer le poste d’envoi","Le poste d’envoi n’est pas organisé. Il manque des préparations et des matériels.","Toutes les préparations et matériels sont présents mais le poste est désordonné.","Le poste est partiellement organisé, il ne permet pas la fluidité du service.","Le poste est organisé pour optimiser la fluidité des envois"]
["Gérer les bons","Aucune réponse n’est donnée à l’annonce des bons","Les bons ne sont pas traités dans l’ordre d’annonce","Les bons sont traités dans l’ordre\nLe service manque de fluidité","Le service est fluide, organisé\net répond aux attentes des clients"]
["Gérer les demandes spécifiques","La demande spécifique n’est pas identifiée.","La demande spécifique est identifiée mais la réponse proposée n’est pas adaptée.","La spécificité est identifiée, la réponse proposée est adaptée mais non réalisable.","La spécificité est identifiée et la réponse proposée est adaptée et réalisable."]
["Dresser des desserts","Aucune production n’est dressée dans le temps imparti","La disposition des éléments ne respecte pas les consignes","La disposition des éléments est conforme mais le temps imparti n’est pas respecté","La disposition des éléments du dessert est conforme aux attendus dans le temps imparti"]
["Envoyer les desserts","Aucun dessert n’est envoyé","L’envoi manque de synchronisation","L’envoi est synchronisé mais non conforme à la commande","L’envoi est synchronisé et conforme à la commande"]
["Transmettre et recevoir les informations nécessaires aux besoins du service","L’information n’est pas comprise. Le service est désorganisé et la commande est non conforme.","L’information est comprise. mais la solution apportée n’est pas adaptée","L’information est comprise La solution apportée est adaptée\nLe service  est désorganisé","La pertinence des informations reçues et transmises permet un service\nfluide et conforme aux commandes"]
["EP 2 : proposition d’indicateurs de performance"]
["Indicateurs de performance épreuve EP2"]
["Compétences opérationnelles Pôle 2","Candidat peu ou pas autonome",null,"Candidat autonome"]
[null,"MTI\nNiveau « NOVICE »","MI\nNiveau « EXECUTANT »","BM\nNiveau « AVERTI »","TBM\n(résultat attendu du référentiel)"]
["Produire les desserts de la carte","Les  desserts ne sont pas conformes","Une  majorité des desserts de la carte n’est pas\nconforme","Une  majorité des desserts de la carte est\nconforme","Les desserts sont conformes"]
["Créer un dessert","Aucun dessert de créé","Le dessert est créé Le dessert n’est pas commercialisable","Le dessert créé est commercialisable."]
["Sélectionner et quantifier des ingrédients","Le choix des matières premières n’est pas adapté à la production demandée","Le choix des matières premières est adapté\nLa quantité des matières premières n’est pas adaptée","Le choix des matières premières est adapté\nLa quantité des matières premières est adaptée La qualité des matières premières n’est pas adaptée","Le choix des matières premières est adapté à la production demandée (qualitativement et quantitativement)."]
["Collaborer à la définition d’un argumentaire de vente","Aucun argumentaire","L’argumentaire est pauvre et approximatif","L’argumentaire est correct mais pas assez\ndéveloppé","Le choix des arguments est pertinent et explicité."]
["Identifier des besoins de matières premières","Aucun contrôle visuel n’a été effectué","Un contrôle approximatif est effectué sans transmission d’informations","Un contrôle visuel est effectué mais l’information est transmise de façon approximative","Un contrôle visuel est réalisé et l’information est transmise à son supérieur hiérarchique."]
["Contrôler et déconditionner une livraison","Aucun contrôle qui permette d’établir la conformité de la livraison.\nAucun protocole de déconditionnement n’a été effectué.","Un contrôle a été effectué, la livraison est conforme mais les protocoles de déconditionnement n’ont pas été respectés","Un contrôle a été effectué, la livraison est conforme mais les protocoles de déconditionnement ont été faits de manière approximative","Le bon de commande et de livraisons sont conformes.\nLes anomalies qualitatives et/ou quantitatives sont identifiées.\nLes protocoles de déconditionnement sont appliqués en vue des différents stockages."]
["Stocker les livraisons","Le  stockage n’est pas réalisé","Le  stockage est réalisé mais non conforme","Le stockage est réalisé \nQuelques erreurs de conformité subsistent","Le stockage est conforme à la législation en restauration."]
["Appliquer les règles d’hygiène","L’état des locaux, des matériels et équipements n’est pas du tout contrôlé. L’application des règles d’hygiène n’est pas mis en œuvre","Mise en œuvre partielle des règles d’hygiène et aucun contrôle n’est effectué.","Les locaux et matériels sont nettoyés et contrôlés mais pas tout au long de l’activité","L’état des locaux, des matériels et équipements est contrôlé tout au long de l’activité dans le respect des protocoles d’hygiène."]
["Appliquer les règles de sécurité alimentaire","Les procédures et protocoles d’hygiènes ne sont pas respectés",null,"Les procédures et protocoles d’hygiènes sont respectés."]
["Appliquer les mesures de prévention et de sécurité au travail","Les procédures liées à la sécurité du travail ne sont pas du tout respectées.","Les procédures liées à la sécurité du travail sont partiellement respectées","Les procédures liées à la sécurité du travail en lien avec son intégrité physique sont respectées\nLes autres procédures ne le sont pas toujours","Les procédures liées à la sécurité du travail sont respectées."]
["Appliquer les préconisations en matière de gestion durable des ressources","La gestion durable des ressources n’est pas conforme à la réglementation et à la politique de développement durable de l’entreprise","Le tri sélectif est effectué Aucune attention portée dans la gestion des fluides","Le tri sélectif est effectué\nLa  gestion des fluides est partiellement respectée","La gestion durable des ressources est conforme à la réglementation et à la politique de développement durable de l’entreprise"]

{"sheet":"Data","index":2,"n_rows":56,"n_cols":22,"rows_kept":56,"cut":false,"hidden":true,"merged":[]}
["'E",null,14,15,17,18,19,20,21,22,23,24,25,26,29,31,32,34,36,37]
[{"$f":"CONCATENATE($A$1,$B2,\"'!\")","v":"'E1'!"},1,{"$f":"CONCATENATE(\"E\",C$1,\":AZ\",C$1)","v":"E14:AZ14"},{"$f":"CONCATENATE(\"E\",D$1,\":AZ\",D$1)","v":"E15:AZ15"},"E17:AZ17","E18:AZ18","E19:AZ19","E20:AZ20","E21:AZ21","E22:AZ22","E23:AZ23","E24:AZ24","E25:AZ25","E26:AZ26","E29:AZ29","E31:AZ31","E32:AZ32","E34:AZ34","E36:AZ36","E37:AZ37"]
[{"$f":"CONCATENATE($A$1,$B3,\"'!\")","v":"'E2'!"},2]
["'E3'!",3]
["'E4'!",4]
["'E5'!",5]
["'E6'!",6]
["'E7'!",7]
["'E8'!",8]
["'E9'!",9]
["'E10'!",10]
["'E11'!",11]
["'E12'!",12]
[]
[]
["'Suivi Formation CS Pôle 1 E1'!",1,"E14:AZ14"]
[]
[]
[]
["administratif!",10]
[null,11]
[null,12]
[null,13]
[null,14]
[null,15]
[null,16]
[null,17]
[null,18]
[null,19]
[null,20]
[null,21]
[]
[]
[]
[]
[]
[null,null,null,{"$f":"MID(Synthèse!D14,2,1)","v":""},{"$f":"MID(Synthèse!E14,2,1)","v":""},{"$f":"MID(Synthèse!F14,2,1)","v":""},{"$f":"MID(Synthèse!G14,2,1)","v":""},{"$f":"MID(Synthèse!H14,2,1)","v":""},{"$f":"MID(Synthèse!I14,2,1)","v":""},{"$f":"MID(Synthèse!J14,2,1)","v":""},{"$f":"MID(Synthèse!K14,2,1)","v":""},{"$f":"MID(Synthèse!L14,2,1)","v":""},{"$f":"MID(Synthèse!M14,2,1)","v":""},{"$f":"MID(Synthèse!N14,2,1)","v":""},{"$f":"MID(Synthèse!O14,2,1)","v":""},{"$f":"MID(Synthèse!P14,2,1)","v":""},{"$f":"MID(Synthèse!Q14,2,1)","v":""},{"$f":"MID(Synthèse!R14,2,1)","v":""},{"$f":"MID(Synthèse!S14,2,1)","v":""},{"$f":"MID(Synthèse!T14,2,1)","v":""},{"$f":"MID(Synthèse!U14,2,1)","v":""},{"$f":"MID(Synthèse!V14,2,1)","v":""}]
[{"$f":"Synthèse!B16","v":"nom et prénom"},{"$f":"Synthèse!$B2","v":0},{"$f":"Synthèse!$B3","v":0},{"$f":"Synthèse!B4","v":0},{"$f":"Synthèse!$B5","v":0},{"$f":"Synthèse!$B6","v":0},{"$f":"Synthèse!$B7","v":0},{"$f":"Synthèse!$B8","v":0},{"$f":"Synthèse!$B9","v":0},{"$f":"Synthèse!$B10","v":0},{"$f":"Synthèse!$B11","v":0},{"$f":"Synthèse!$B12","v":0},{"$f":"Synthèse!$B13","v":0},null,{"$f":"MID(Synthèse!O15,2,1)","v":""},{"$f":"MID(Synthèse!P15,2,1)","v":""},{"$f":"MID(Synthèse!Q15,2,1)","v":""},{"$f":"MID(Synthèse!R15,2,1)","v":""},{"$f":"MID(Synthèse!S15,2,1)","v":""},{"$f":"MID(Synthèse!T15,2,1)","v":""},{"$f":"MID(Synthèse!U15,2,1)","v":""},{"$f":"MID(Synthèse!V15,2,1)","v":""}]
[{"$f":"Synthèse!B17","v":"Planifier son travail "},{"$f":"_xlfn.NUMBERVALUE(Synthèse!C17)","v":{"$error":"#VALUE!"}},{"$f":"_xlfn.NUMBERVALUE(Synthèse!D17)","v":{"$error":"#VALUE!"}},{"$f":"_xlfn.NUMBERVALUE(Synthèse!E17)","v":{"$error":"#VALUE!"}},{"$f":"_xlfn.NUMBERVALUE(Synthèse!F17)","v":{"$error":"#VALUE!"}},{"$f":"_xlfn.NUMBERVALUE(Synthèse!G17)","v":{"$error":"#VALUE!"}},{"$f":"_xlfn.NUMBERVALUE(Synthèse!H17)","v":{"$error":"#VALUE!"}},{"$f":"_xlfn.NUMBERVALUE(Synthèse!I17)","v":{"$error":"#VALUE!"}},{"$f":"_xlfn.NUMBERVALUE(Synthèse!J17)","v":{"$error":"#VALUE!"}},{"$f":"_xlfn.NUMBERVALUE(Synthèse!K17)","v":{"$error":"#VALUE!"}},{"$f":"_xlfn.NUMBERVALUE(Synthèse!L17)","v":{"$error":"#VALUE!"}},{"$f":"_xlfn.NUMBERVALUE(Synthèse!M17)","v":{"$error":"#VALUE!"}},{"$f":"_xlfn.NUMBERVALUE(Synthèse!N17)","v":{"$error":"#VALUE!"}},null,{"$f":"MID(Synthèse!O16,2,1)","v":""},{"$f":"MID(Synthèse!P16,2,1)","v":""},{"$f":"MID(Synthèse!Q16,2,1)","v":""},{"$f":"MID(Synthèse!R16,2,1)","v":""},{"$f":"MID(Synthèse!S16,2,1)","v":""},{"$f":"MID(Synthèse!T16,2,1)","v":""},{"$f":"MID(Synthèse!U16,2,1)","v":""},{"$f":"MID(Synthèse!V16,2,1)","v":""}]
[{"$f":"Synthèse!B18","v":"Organiser son poste de travail "},{"$f":"_xlfn.NUMBERVALUE(Synthèse!C18)","v":{"$error":"#VALUE!"}},{"$f":"_xlfn.NUMBERVALUE(Synthèse!D18)","v":{"$error":"#VALUE!"}},{"$f":"_xlfn.NUMBERVALUE(Synthèse!E18)","v":{"$error":"#VALUE!"}},{"$f":"_xlfn.NUMBERVALUE(Synthèse!F18)","v":{"$error":"#VALUE!"}},{"$f":"_xlfn.NUMBERVALUE(Synthèse!G18)","v":{"$error":"#VALUE!"}},{"$f":"_xlfn.NUMBERVALUE(Synthèse!H18)","v":{"$error":"#VALUE!"}},{"$f":"_xlfn.NUMBERVALUE(Synthèse!I18)","v":{"$error":"#VALUE!"}},{"$f":"_xlfn.NUMBERVALUE(Synthèse!J18)","v":{"$error":"#VALUE!"}},{"$f":"_xlfn.NUMBERVALUE(Synthèse!K18)","v":{"$error":"#VALUE!"}},{"$f":"_xlfn.NUMBERVALUE(Synthèse!L18)","v":{"$error":"#VALUE!"}},{"$f":"_xlfn.NUMBERVALUE(Synthèse!M18)","v":{"$error":"#VALUE!"}},{"$f":"_xlfn.NUMBERVALUE(Synthèse!N18)","v":{"$error":"#VALUE!"}},null,{"$f":"MID(Synthèse!O17,2,1)","v":""},{"$f":"MID(Synthèse!P17,2,1)","v":""},{"$f":"MID(Synthèse!Q17,2,1)","v":""},{"$f":"MID(Synthèse!R17,2,1)","v":""},{"$f":"MID(Synthèse!S17,2,1)","v":""},{"$f":"MID(Synthèse!T17,2,1)","v":""},{"$f":"MID(Synthèse!U17,2,1)","v":""},{"$f":"MID(Synthèse!V17,2,1)","v":""}]
[{"$f":"Synthèse!B19","v":"Réaliser des pâtes et appareils"},{"$f":"_xlfn.NUMBERVALUE(Synthèse!C19)","v":{"$error":"#VALUE!"}},{"$f":"_xlfn.NUMBERVALUE(Synthèse!D19)","v":{"$error":"#VALUE!"}},{"$f":"_xlfn.NUMBERVALUE(Synthèse!E19)","v":{"$error":"#VALUE!"}},{"$f":"_xlfn.NUMBERVALUE(Synthèse!F19)","v":{"$error":"#VALUE!"}},{"$f":"_xlfn.NUMBERVALUE(Synthèse!G19)","v":{"$error":"#VALUE!"}},{"$f":"_xlfn.NUMBERVALUE(Synthèse!H19)","v":{"$error":"#VALUE!"}},{"$f":"_xlfn.NUMBERVALUE(Synthèse!I19)","v":{"$error":"#VALUE!"}},{"$f":"_xlfn.NUMBERVALUE(Synthèse!J19)","v":{"$error":"#VALUE!"}},{"$f":"_xlfn.NUMBERVALUE(Synthèse!K19)","v":{"$error":"#VALUE!"}},{"$f":"_xlfn.NUMBERVALUE(Synthèse!L19)","v":{"$error":"#VALUE!"}},{"$f":"_xlfn.NUMBERVALUE(Synthèse!M19)","v":{"$error":"#VALUE!"}},{"$f":"_xlfn.NUMBERVALUE(Synthèse!N19)","v":{"$error":"#VALUE!"}},null,{"$f":"MID(Synthèse!O18,2,1)","v":""},{"$f":"MID(Synthèse!P18,2,1)","v":""},{"$f":"MID(Synthèse!Q18,2,1)","v":""},{"$f":"MID(Synthèse!R18,2,1)","v":""},{"$f":"MID(Synthèse!S18,2,1)","v":""},{"$f":"MID(Synthèse!T18,2,1)","v":""},{"$f":"MID(Synthèse!U18,2,1)","v":""},{"$f":"MID(Synthèse!V18,2,1)","v":""}]
[{"$f":"Synthèse!B20","v":"Apprêter des pâtes"},{"$f":"_xlfn.NUMBERVALUE(Synthèse!C20)","v":{"$error":"#VALUE!"}},{"$f":"_xlfn.NUMBERVALUE(Synthèse!D20)","v":{"$error":"#VALUE!"}},{"$f":"_xlfn.NUMBERVALUE(Synthèse!E20)","v":{"$error":"#VALUE!"}},{"$f":"_xlfn.NUMBERVALUE(Synthèse!F20)","v":{"$error":"#VALUE!"}},{"$f":"_xlfn.NUMBERVALUE(Synthèse!G20)","v":{"$error":"#VALUE!"}},{"$f":"_xlfn.NUMBERVALUE(Synthèse!H20)","v":{"$error":"#VALUE!"}},{"$f":"_xlfn.NUMBERVALUE(Synthèse!I20)","v":{"$error":"#VALUE!"}},{"$f":"_xlfn.NUMBERVALUE(Synthèse!J20)","v":{"$error":"#VALUE!"}},{"$f":"_xlfn.NUMBERVALUE(Synthèse!K20)","v":{"$error":"#VALUE!"}},{"$f":"_xlfn.NUMBERVALUE(Synthèse!L20)","v":{"$error":"#VALUE!"}},{"$f":"_xlfn.NUMBERVALUE(Synthèse!M20)","v":{"$error":"#VALUE!"}},{"$f":"_xlfn.NUMBERVALUE(Synthèse!N20)","v":{"$error":"#VALUE!"}},null,{"$f":"MID(Synthèse!O19,2,1)","v":""},{"$f":"MID(Synthèse!P19,2,1)","v":""},{"$f":"MID(Synthèse!Q19,2,1)","v":""},{"$f":"MID(Synthèse!R19,2,1)","v":""},{"$f":"MID(Synthèse!S19,2,1)","v":""},{"$f":"MID(Synthèse!T19,2,1)","v":""},{"$f":"MID(Synthèse!U19,2,1)","v":""},{"$f":"MID(Synthèse!V19,2,1)","v":""}]
[{"$f":"Synthèse!B21","v":"Cuire des pâtes"},{"$f":"_xlfn.NUMBERVALUE(Synthèse!C21)","v":{"$error":"#VALUE!"}},{"$f":"_xlfn.NUMBERVALUE(Synthèse!D21)","v":{"$error":"#VALUE!"}},{"$f":"_xlfn.NUMBERVALUE(Synthèse!E21)","v":{"$error":"#VALUE!"}},{"$f":"_xlfn.NUMBERVALUE(Synthèse!F21)","v":{"$error":"#VALUE!"}},{"$f":"_xlfn.NUMBERVALUE(Synthèse!G21)","v":{"$error":"#VALUE!"}},{"$f":"_xlfn.NUMBERVALUE(Synthèse!H21)","v":{"$error":"#VALUE!"}},{"$f":"_xlfn.NUMBERVALUE(Synthèse!I21)","v":{"$error":"#VALUE!"}},{"$f":"_xlfn.NUMBERVALUE(Synthèse!J21)","v":{"$error":"#VALUE!"}},{"$f":"_xlfn.NUMBERVALUE(Synthèse!K21)","v":{"$error":"#VALUE!"}},{"$f":"_xlfn.NUMBERVALUE(Synthèse!L21)","v":{"$error":"#VALUE!"}},{"$f":"_xlfn.NUMBERVALUE(Synthèse!M21)","v":{"$error":"#VALUE!"}},{"$f":"_xlfn.NUMBERVALUE(Synthèse!N21)","v":{"$error":"#VALUE!"}},null,{"$f":"MID(Synthèse!O20,2,1)","v":""},{"$f":"MID(Synthèse!P20,2,1)","v":""},{"$f":"MID(Synthèse!Q20,2,1)","v":""},{"$f":"MID(Synthèse!R20,2,1)","v":""},{"$f":"MID(Synthèse!S20,2,1)","v":""},{"$f":"MID(Synthèse!T20,2,1)","v":""},{"$f":"MID(Synthèse!U20,2,1)","v":""},{"$f":"MID(Synthèse!V20,2,1)","v":""}]
[{"$f":"Synthèse!B22","v":"Préparer des crèmes, mousses, ganaches et leurs dérivés"},{"$f":"_xlfn.NUMBERVALUE(Synthèse!C22)","v":{"$error":"#VALUE!"}},{"$f":"_xlfn.NUMBERVALUE(Synthèse!D22)","v":{"$error":"#VALUE!"}},{"$f":"_xlfn.NUMBERVALUE(Synthèse!E22)","v":{"$error":"#VALUE!"}},{"$f":"_xlfn.NUMBERVALUE(Synthèse!F22)","v":{"$error":"#VALUE!"}},{"$f":"_xlfn.NUMBERVALUE(Synthèse!G22)","v":{"$error":"#VALUE!"}},{"$f":"_xlfn.NUMBERVALUE(Synthèse!H22)","v":{"$error":"#VALUE!"}},{"$f":"_xlfn.NUMBERVALUE(Synthèse!I22)","v":{"$error":"#VALUE!"}},{"$f":"_xlfn.NUMBERVALUE(Synthèse!J22)","v":{"$error":"#VALUE!"}},{"$f":"_xlfn.NUMBERVALUE(Synthèse!K22)","v":{"$error":"#VALUE!"}},{"$f":"_xlfn.NUMBERVALUE(Synthèse!L22)","v":{"$error":"#VALUE!"}},{"$f":"_xlfn.NUMBERVALUE(Synthèse!M22)","v":{"$error":"#VALUE!"}},{"$f":"_xlfn.NUMBERVALUE(Synthèse!N22)","v":{"$error":"#VALUE!"}},null,{"$f":"MID(Synthèse!O21,2,1)","v":""},{"$f":"MID(Synthèse!P21,2,1)","v":""},{"$f":"MID(Synthèse!Q21,2,1)","v":""},{"$f":"MID(Synthèse!R21,2,1)","v":""},{"$f":"MID(Synthèse!S21,2,1)","v":""},{"$f":"MID(Synthèse!T21,2,1)","v":""},{"$f":"MID(Synthèse!U21,2,1)","v":""},{"$f":"MID(Synthèse!V21,2,1)","v":""}]
[{"$f":"Synthèse!B23","v":"Préparer des fabrications glacées "},{"$f":"_xlfn.NUMBERVALUE(Synthèse!C23)","v":{"$error":"#VALUE!"}},{"$f":"_xlfn.NUMBERVALUE(Synthèse!D23)","v":{"$error":"#VALUE!"}},{"$f":"_xlfn.NUMBERVALUE(Synthèse!E23)","v":{"$error":"#VALUE!"}},{"$f":"_xlfn.NUMBERVALUE(Synthèse!F23)","v":{"$error":"#VALUE!"}},{"$f":"_xlfn.NUMBERVALUE(Synthèse!G23)","v":{"$error":"#VALUE!"}},{"$f":"_xlfn.NUMBERVALUE(Synthèse!H23)","v":{"$error":"#VALUE!"}},{"$f":"_xlfn.NUMBERVALUE(Synthèse!I23)","v":{"$error":"#VALUE!"}},{"$f":"_xlfn.NUMBERVALUE(Synthèse!J23)","v":{"$error":"#VALUE!"}},{"$f":"_xlfn.NUMBERVALUE(Synthèse!K23)","v":{"$error":"#VALUE!"}},{"$f":"_xlfn.NUMBERVALUE(Synthèse!L23)","v":{"$error":"#VALUE!"}},{"$f":"_xlfn.NUMBERVALUE(Synthèse!M23)","v":{"$error":"#VALUE!"}},{"$f":"_xlfn.NUMBERVALUE(Synthèse!N23)","v":{"$error":"#VALUE!"}}]
[{"$f":"Synthèse!B24","v":"Transformer les végétaux "},{"$f":"_xlfn.NUMBERVALUE(Synthèse!C24)","v":{"$error":"#VALUE!"}},{"$f":"_xlfn.NUMBERVALUE(Synthèse!D24)","v":{"$error":"#VALUE!"}},{"$f":"_xlfn.NUMBERVALUE(Synthèse!E24)","v":{"$error":"#VALUE!"}},{"$f":"_xlfn.NUMBERVALUE(Synthèse!F24)","v":{"$error":"#VALUE!"}},{"$f":"_xlfn.NUMBERVALUE(Synthèse!G24)","v":{"$error":"#VALUE!"}},{"$f":"_xlfn.NUMBERVALUE(Synthèse!H24)","v":{"$error":"#VALUE!"}},{"$f":"_xlfn.NUMBERVALUE(Synthèse!I24)","v":{"$error":"#VALUE!"}},{"$f":"_xlfn.NUMBERVALUE(Synthèse!J24)","v":{"$error":"#VALUE!"}},{"$f":"_xlfn.NUMBERVALUE(Synthèse!K24)","v":{"$error":"#VALUE!"}},{"$f":"_xlfn.NUMBERVALUE(Synthèse!L24)","v":{"$error":"#VALUE!"}},{"$f":"_xlfn.NUMBERVALUE(Synthèse!M24)","v":{"$error":"#VALUE!"}},{"$f":"_xlfn.NUMBERVALUE(Synthèse!N24)","v":{"$error":"#VALUE!"}}]
[{"$f":"Synthèse!B25","v":"Réaliser des inserts "},{"$f":"_xlfn.NUMBERVALUE(Synthèse!C25)","v":{"$error":"#VALUE!"}},{"$f":"_xlfn.NUMBERVALUE(Synthèse!D25)","v":{"$error":"#VALUE!"}},{"$f":"_xlfn.NUMBERVALUE(Synthèse!E25)","v":{"$error":"#VALUE!"}},{"$f":"_xlfn.NUMBERVALUE(Synthèse!F25)","v":{"$error":"#VALUE!"}},{"$f":"_xlfn.NUMBERVALUE(Synthèse!G25)","v":{"$error":"#VALUE!"}},{"$f":"_xlfn.NUMBERVALUE(Synthèse!H25)","v":{"$error":"#VALUE!"}},{"$f":"_xlfn.NUMBERVALUE(Synthèse!I25)","v":{"$error":"#VALUE!"}},{"$f":"_xlfn.NUMBERVALUE(Synthèse!J25)","v":{"$error":"#VALUE!"}},{"$f":"_xlfn.NUMBERVALUE(Synthèse!K25)","v":{"$error":"#VALUE!"}},{"$f":"_xlfn.NUMBERVALUE(Synthèse!L25)","v":{"$error":"#VALUE!"}},{"$f":"_xlfn.NUMBERVALUE(Synthèse!M25)","v":{"$error":"#VALUE!"}},{"$f":"_xlfn.NUMBERVALUE(Synthèse!N25)","v":{"$error":"#VALUE!"}}]
[{"$f":"Synthèse!B26","v":"Monter et assembler des préparations "},{"$f":"_xlfn.NUMBERVALUE(Synthèse!C26)","v":{"$error":"#VALUE!"}},{"$f":"_xlfn.NUMBERVALUE(Synthèse!D26)","v":{"$error":"#VALUE!"}},{"$f":"_xlfn.NUMBERVALUE(Synthèse!E26)","v":{"$error":"#VALUE!"}},{"$f":"_xlfn.NUMBERVALUE(Synthèse!F26)","v":{"$error":"#VALUE!"}},{"$f":"_xlfn.NUMBERVALUE(Synthèse!G26)","v":{"$error":"#VALUE!"}},{"$f":"_xlfn.NUMBERVALUE(Synthèse!H26)","v":{"$error":"#VALUE!"}},{"$f":"_xlfn.NUMBERVALUE(Synthèse!I26)","v":{"$error":"#VALUE!"}},{"$f":"_xlfn.NUMBERVALUE(Synthèse!J26)","v":{"$error":"#VALUE!"}},{"$f":"_xlfn.NUMBERVALUE(Synthèse!K26)","v":{"$error":"#VALUE!"}},{"$f":"_xlfn.NUMBERVALUE(Synthèse!L26)","v":{"$error":"#VALUE!"}},{"$f":"_xlfn.NUMBERVALUE(Synthèse!M26)","v":{"$error":"#VALUE!"}},{"$f":"_xlfn.NUMBERVALUE(Synthèse!N26)","v":{"$error":"#VALUE!"}}]
[{"$f":"Synthèse!B27","v":"Réaliser des éléments de finitions"},{"$f":"_xlfn.NUMBERVALUE(Synthèse!C27)","v":{"$error":"#VALUE!"}},{"$f":"_xlfn.NUMBERVALUE(Synthèse!D27)","v":{"$error":"#VALUE!"}},{"$f":"_xlfn.NUMBERVALUE(Synthèse!E27)","v":{"$error":"#VALUE!"}},{"$f":"_xlfn.NUMBERVALUE(Synthèse!F27)","v":{"$error":"#VALUE!"}},{"$f":"_xlfn.NUMBERVALUE(Synthèse!G27)","v":{"$error":"#VALUE!"}},{"$f":"_xlfn.NUMBERVALUE(Synthèse!H27)","v":{"$error":"#VALUE!"}},{"$f":"_xlfn.NUMBERVALUE(Synthèse!I27)","v":{"$error":"#VALUE!"}},{"$f":"_xlfn.NUMBERVALUE(Synthèse!J27)","v":{"$error":"#VALUE!"}},{"$f":"_xlfn.NUMBERVALUE(Synthèse!K27)","v":{"$error":"#VALUE!"}},{"$f":"_xlfn.NUMBERVALUE(Synthèse!L27)","v":{"$error":"#VALUE!"}},{"$f":"_xlfn.NUMBERVALUE(Synthèse!M27)","v":{"$error":"#VALUE!"}},{"$f":"_xlfn.NUMBERVALUE(Synthèse!N27)","v":{"$error":"#VALUE!"}}]
[{"$f":"Synthèse!B28","v":"Apprécier et rectifier la production"},{"$f":"_xlfn.NUMBERVALUE(Synthèse!C28)","v":{"$error":"#VALUE!"}},{"$f":"_xlfn.NUMBERVALUE(Synthèse!D28)","v":{"$error":"#VALUE!"}},{"$f":"_xlfn.NUMBERVALUE(Synthèse!E28)","v":{"$error":"#VALUE!"}},{"$f":"_xlfn.NUMBERVALUE(Synthèse!F28)","v":{"$error":"#VALUE!"}},{"$f":"_xlfn.NUMBERVALUE(Synthèse!G28)","v":{"$error":"#VALUE!"}},{"$f":"_xlfn.NUMBERVALUE(Synthèse!H28)","v":{"$error":"#VALUE!"}},{"$f":"_xlfn.NUMBERVALUE(Synthèse!I28)","v":{"$error":"#VALUE!"}},{"$f":"_xlfn.NUMBERVALUE(Synthèse!J28)","v":{"$error":"#VALUE!"}},{"$f":"_xlfn.NUMBERVALUE(Synthèse!K28)","v":{"$error":"#VALUE!"}},{"$f":"_xlfn.NUMBERVALUE(Synthèse!L28)","v":{"$error":"#VALUE!"}},{"$f":"_xlfn.NUMBERVALUE(Synthèse!M28)","v":{"$error":"#VALUE!"}},{"$f":"_xlfn.NUMBERVALUE(Synthèse!N28)","v":{"$error":"#VALUE!"}}]
[{"$f":"Synthèse!B29","v":"Configurer le poste d’envoi "},{"$f":"_xlfn.NUMBERVALUE(Synthèse!C29)","v":{"$error":"#VALUE!"}},{"$f":"_xlfn.NUMBERVALUE(Synthèse!D29)","v":{"$error":"#VALUE!"}},{"$f":"_xlfn.NUMBERVALUE(Synthèse!E29)","v":{"$error":"#VALUE!"}},{"$f":"_xlfn.NUMBERVALUE(Synthèse!F29)","v":{"$error":"#VALUE!"}},{"$f":"_xlfn.NUMBERVALUE(Synthèse!G29)","v":{"$error":"#VALUE!"}},{"$f":"_xlfn.NUMBERVALUE(Synthèse!H29)","v":{"$error":"#VALUE!"}},{"$f":"_xlfn.NUMBERVALUE(Synthèse!I29)","v":{"$error":"#VALUE!"}},{"$f":"_xlfn.NUMBERVALUE(Synthèse!J29)","v":{"$error":"#VALUE!"}},{"$f":"_xlfn.NUMBERVALUE(Synthèse!K29)","v":{"$error":"#VALUE!"}},{"$f":"_xlfn.NUMBERVALUE(Synthèse!L29)","v":{"$error":"#VALUE!"}},{"$f":"_xlfn.NUMBERVALUE(Synthèse!M29)","v":{"$error":"#VALUE!"}},{"$f":"_xlfn.NUMBERVALUE(Synthèse!N29)","v":{"$error":"#VALUE!"}}]
[{"$f":"Synthèse!B30","v":"Gérer les bons"},{"$f":"_xlfn.NUMBERVALUE(Synthèse!C30)","v":{"$error":"#VALUE!"}},{"$f":"_xlfn.NUMBERVALUE(Synthèse!D30)","v":{"$error":"#VALUE!"}},{"$f":"_xlfn.NUMBERVALUE(Synthèse!E30)","v":{"$error":"#VALUE!"}},{"$f":"_xlfn.NUMBERVALUE(Synthèse!F30)","v":{"$error":"#VALUE!"}},{"$f":"_xlfn.NUMBERVALUE(Synthèse!G30)","v":{"$error":"#VALUE!"}},{"$f":"_xlfn.NUMBERVALUE(Synthèse!H30)","v":{"$error":"#VALUE!"}},{"$f":"_xlfn.NUMBERVALUE(Synthèse!I30)","v":{"$error":"#VALUE!"}},{"$f":"_xlfn.NUMBERVALUE(Synthèse!J30)","v":{"$error":"#VALUE!"}},{"$f":"_xlfn.NUMBERVALUE(Synthèse!K30)","v":{"$error":"#VALUE!"}},{"$f":"_xlfn.NUMBERVALUE(Synthèse!L30)","v":{"$error":"#VALUE!"}},{"$f":"_xlfn.NUMBERVALUE(Synthèse!M30)","v":{"$error":"#VALUE!"}},{"$f":"_xlfn.NUMBERVALUE(Synthèse!N30)","v":{"$error":"#VALUE!"}}]
[{"$f":"Synthèse!B31","v":"Gérer les demandes spécifiques"},{"$f":"_xlfn.NUMBERVALUE(Synthèse!C31)","v":{"$error":"#VALUE!"}},{"$f":"_xlfn.NUMBERVALUE(Synthèse!D31)","v":{"$error":"#VALUE!"}},{"$f":"_xlfn.NUMBERVALUE(Synthèse!E31)","v":{"$error":"#VALUE!"}},{"$f":"_xlfn.NUMBERVALUE(Synthèse!F31)","v":{"$error":"#VALUE!"}},{"$f":"_xlfn.NUMBERVALUE(Synthèse!G31)","v":{"$error":"#VALUE!"}},{"$f":"_xlfn.NUMBERVALUE(Synthèse!H31)","v":{"$error":"#VALUE!"}},{"$f":"_xlfn.NUMBERVALUE(Synthèse!I31)","v":{"$error":"#VALUE!"}},{"$f":"_xlfn.NUMBERVALUE(Synthèse!J31)","v":{"$error":"#VALUE!"}},{"$f":"_xlfn.NUMBERVALUE(Synthèse!K31)","v":{"$error":"#VALUE!"}},{"$f":"_xlfn.NUMBERVALUE(Synthèse!L31)","v":{"$error":"#VALUE!"}},{"$f":"_xlfn.NUMBERVALUE(Synthèse!M31)","v":{"$error":"#VALUE!"}},{"$f":"_xlfn.NUMBERVALUE(Synthèse!N31)","v":{"$error":"#VALUE!"}}]
[{"$f":"Synthèse!B32","v":"Dresser des desserts "},{"$f":"_xlfn.NUMBERVALUE(Synthèse!C32)","v":{"$error":"#VALUE!"}},{"$f":"_xlfn.NUMBERVALUE(Synthèse!D32)","v":{"$error":"#VALUE!"}},{"$f":"_xlfn.NUMBERVALUE(Synthèse!E32)","v":{"$error":"#VALUE!"}},{"$f":"_xlfn.NUMBERVALUE(Synthèse!F32)","v":{"$error":"#VALUE!"}},{"$f":"_xlfn.NUMBERVALUE(Synthèse!G32)","v":{"$error":"#VALUE!"}},{"$f":"_xlfn.NUMBERVALUE(Synthèse!H32)","v":{"$error":"#VALUE!"}},{"$f":"_xlfn.NUMBERVALUE(Synthèse!I32)","v":{"$error":"#VALUE!"}},{"$f":"_xlfn.NUMBERVALUE(Synthèse!J32)","v":{"$error":"#VALUE!"}},{"$f":"_xlfn.NUMBERVALUE(Synthèse!K32)","v":{"$error":"#VALUE!"}},{"$f":"_xlfn.NUMBERVALUE(Synthèse!L32)","v":{"$error":"#VALUE!"}},{"$f":"_xlfn.NUMBERVALUE(Synthèse!M32)","v":{"$error":"#VALUE!"}},{"$f":"_xlfn.NUMBERVALUE(Synthèse!N32)","v":{"$error":"#VALUE!"}}]
[{"$f":"Synthèse!B33","v":"Envoyer les desserts "},{"$f":"_xlfn.NUMBERVALUE(Synthèse!C33)","v":{"$error":"#VALUE!"}},{"$f":"_xlfn.NUMBERVALUE(Synthèse!D33)","v":{"$error":"#VALUE!"}},{"$f":"_xlfn.NUMBERVALUE(Synthèse!E33)","v":{"$error":"#VALUE!"}},{"$f":"_xlfn.NUMBERVALUE(Synthèse!F33)","v":{"$error":"#VALUE!"}},{"$f":"_xlfn.NUMBERVALUE(Synthèse!G33)","v":{"$error":"#VALUE!"}},{"$f":"_xlfn.NUMBERVALUE(Synthèse!H33)","v":{"$error":"#VALUE!"}},{"$f":"_xlfn.NUMBERVALUE(Synthèse!I33)","v":{"$error":"#VALUE!"}},{"$f":"_xlfn.NUMBERVALUE(Synthèse!J33)","v":{"$error":"#VALUE!"}},{"$f":"_xlfn.NUMBERVALUE(Synthèse!K33)","v":{"$error":"#VALUE!"}},{"$f":"_xlfn.NUMBERVALUE(Synthèse!L33)","v":{"$error":"#VALUE!"}},{"$f":"_xlfn.NUMBERVALUE(Synthèse!M33)","v":{"$error":"#VALUE!"}},{"$f":"_xlfn.NUMBERVALUE(Synthèse!N33)","v":{"$error":"#VALUE!"}}]
[{"$f":"Synthèse!B34","v":"Transmettre et recevoir les informations nécessaires aux besoins du service"},{"$f":"_xlfn.NUMBERVALUE(Synthèse!C34)","v":{"$error":"#VALUE!"}},{"$f":"_xlfn.NUMBERVALUE(Synthèse!D34)","v":{"$error":"#VALUE!"}},{"$f":"_xlfn.NUMBERVALUE(Synthèse!E34)","v":{"$error":"#VALUE!"}},{"$f":"_xlfn.NUMBERVALUE(Synthèse!F34)","v":{"$error":"#VALUE!"}},{"$f":"_xlfn.NUMBERVALUE(Synthèse!G34)","v":{"$error":"#VALUE!"}},{"$f":"_xlfn.NUMBERVALUE(Synthèse!H34)","v":{"$error":"#VALUE!"}},{"$f":"_xlfn.NUMBERVALUE(Synthèse!I34)","v":{"$error":"#VALUE!"}},{"$f":"_xlfn.NUMBERVALUE(Synthèse!J34)","v":{"$error":"#VALUE!"}},{"$f":"_xlfn.NUMBERVALUE(Synthèse!K34)","v":{"$error":"#VALUE!"}},{"$f":"_xlfn.NUMBERVALUE(Synthèse!L34)","v":{"$error":"#VALUE!"}},{"$f":"_xlfn.NUMBERVALUE(Synthèse!M34)","v":{"$error":"#VALUE!"}},{"$f":"_xlfn.NUMBERVALUE(Synthèse!N34)","v":{"$error":"#VALUE!"}}]

{"sheet":"E1","index":3,"n_rows":43,"n_cols":23,"rows_kept":43,"cut":false,"hidden":false,"merged":[[9,1,36,1],[30,2,30,3],[31,2,31,3],[33,2,33,3],[34,2,34,22],[35,2,35,3],[22,2,22,3],[23,2,23,3],[24,2,24,3],[25,2,25,3],[28,2,28,3],[17,2,17,3],[18,2,18,3],[19,2,19,3],[9,2,9,3],[10,2,10,3],[30,18,31,18],[1,1,1,22],[0,1,0,22],[7,1,7,3],[7,8,7,9],[7,14,7,15],[2,1,2,2],[2,11,2,17],[3,1,5,2],[3,3,5,3],[3,4,5,10],[3,11,5,17],[7,19,7,21],[2,21,2,22],[3,21,3,22],[10,4,10,8],[42,17,42,23],[38,17,38,23],[39,17,39,23],[40,17,40,23],[38,3,38,9],[39,4,39,9],[40,4,40,9],[41,3,41,9],[42,4,42,9],[35,18,36,18],[11,2,11,22],[32,2,32,22],[27,2,27,22],[13,2,13,3],[14,2,14,3],[15,2,15,22],[16,2,16,3],[29,2,29,22],[26,2,26,22],[21,2,21,3],[20,2,20,3],[12,2,12,22],[13,18,14,18],[16,18,25,18],[36,2,36,3],[10,9,10,13],[10,14,10,17],[5,21,5,22],[2,19,2,20],[3,19,3,20],[4,19,4,20],[5,19,5,20],[2,4,2,10],[9,18,10,18],[2,18,5,18],[9,19,9,22],[4,21,4,22],[7,5,7,6],[7,11,7,12]]}
[null,"CS  DESSERTS DE RESTAURANT - POLE 1"]
[null,"SUIVI DE L'EVALUATION DES COMPETENCES SUR LE CYCLE DE FORMATION "]
[null,"Session : ",null,"NOM Prénom de l'élève/apprenti :","ACADEMIE :",null,null,null,null,null,null,"Lycée/CFA :",null,null,null,null,null,null,null,"Lieux de PFMP/Entreprise de formation :",null,"Nom des Tuteurs/Maitre d'apprentissage :"]
[null,{"$f":"Administratif!$B$5","v":0},null,{"$f":"INDIRECT(Data!$A$20&\"B\"&Data!B20)","v":0},{"$f":"Administratif!B3","v":0},null,null,null,null,null,null,{"$f":"Administratif!$B$7","v":0},null,null,null,null,null,null,null,{"$f":"INDIRECT(Data!$A$20&\"D\"&Data!$B$20)","v":0},null,{"$f":"INDIRECT(Data!$A$20&\"H\"&Data!$B$20)","v":0}]
[null,null,null,null,null,null,null,null,null,null,null,null,null,null,null,null,null,null,null,{"$f":"INDIRECT(Data!$A$20&\"E\"&Data!$B$20)","v":0},null,{"$f":"INDIRECT(Data!$A$20&\"I\"&Data!$B$20)","v":0}]
[null,null,null,null,null,null,null,null,null,null,null,null,null,null,null,null,null,null,null,{"$f":"INDIRECT(Data!$A$20&\"F\"&Data!$B$20)","v":0},null,{"$f":"INDIRECT(Data!$A$20&\"J\"&Data!$B$20)","v":0}]
[]
[null,"RAPPEL CODES DES PALIERS DE PROFESSIONNALISATION A SAISIR >>",null,null,null,"P1 =  novice = Saisir 1",null,null,"P2 = exécutant = Saisir 2",null,null,"P3 = averti = Saisir 3",null,null,"P4 = expert = Saisir 4"]
[]
[null,"Pôle 1 - Production et envoi des desserts","Lieu d'évaluation Centre de formation/Entreprise :",null,null,null,null,null,null,null,null,null,null,null,null,null,null,null,null,"POSITIONNEMENT FINAL "]
[null,null,"Périodes",null,"Période 1",null,null,null,null,"Période 2",null,null,null,null,"Période 3",null,null,null,null,"Synthèse période 1","Synthèse période 2","Synthèse période 3","Décision finale"]
[null,null,"Activité Professionnelle 1 - Production des desserts dans le respect des règles d’hygiène et de sécurité"]
[null,null,"Organisation de la production"]
[null,null,"Planifier son travail "]
[null,null,"Organiser son poste de travail "]
[null,null,"Réalisation des préparations"]
[null,null,"Réaliser des pâtes et appareils"]
[null,null,"Apprêter des pâtes"]
[null,null,"Cuire des pâtes"]
[null,null,"Préparer des crèmes, mousses, ganaches et leurs dérivés"]
[null,null,"Préparer des fabrications glacées "]
[null,null,"Transformer les végétaux "]
[null,null,"Réaliser des inserts "]
[null,null,"Monter et assembler des préparations "]
[null,null,"Réaliser des éléments de finitions"]
[null,null,"Apprécier et rectifier la production"]
[null,null,"Activité Professionnelle 2 - Dressage, envoi des desserts et communication au cours du ser-vice dans le res-pect des règles d’hygiène et de sécurité"]
[null,null,"Préparation du poste d’envoi  "]
[null,null,"Configurer le poste d’envoi "]
[null,null,"Gestion des bons et des demandes des clients"]
[null,null,"Gérer les bons"]
[null,null,"Gérer les demandes spécifiques","Réceptionner et contrôler la livraison"]
[null,null,"Dressage"]
[null,null,"Dresser des desserts "]
[null,null,"Envoi et communication au cours du service"]
[null,null,"Envoyer les desserts "]
[null,null,"Transmettre et recevoir les informations nécessaires aux besoins du service"]
[]
[null,null,null,"Nom et signature des évaluateurs"]
[null,null,null,"Professeur/Formateur de spécialité :"]
[null,null,null,"Professeur/Formateur de spécialité :"]
[]
[null,null,null,"Tuteur/Maitre d'apprentissage :"]

{"sheet":"E2","index":4,"n_rows":43,"n_cols":23,"rows_kept":43,"cut":false,"hidden":false,"merged":[[0,1,0,22],[1,1,1,22],[2,1,2,2],[2,4,2,10],[2,11,2,17],[2,18,5,18],[2,19,2,20],[2,21,2,22],[3,1,5,2],[3,3,5,3],[7,19,7,21],[3,4,5,10],[3,11,5,17],[3,19,3,20],[3,21,3,22],[4,19,4,20],[4,21,4,22],[5,19,5,20],[5,21,5,22],[7,1,7,3],[7,8,7,9],[7,14,7,15],[7,5,7,6],[7,11,7,12],[9,1,36,1],[9,2,9,3],[9,18,10,18],[9,19,9,22],[10,2,10,3],[10,4,10,8],[10,9,10,13],[10,14,10,17],[11,2,11,22],[12,2,12,22],[26,2,26,22],[13,2,13,3],[13,18,14,18],[14,2,14,3],[15,2,15,22],[16,2,16,3],[16,18,25,18],[17,2,17,3],[18,2,18,3],[19,2,19,3],[20,2,20,3],[21,2,21,3],[22,2,22,3],[23,2,23,3],[24,2,24,3],[25,2,25,3],[27,2,27,22],[28,2,28,3],[29,2,29,22],[30,2,30,3],[30,18,31,18],[31,2,31,3],[32,2,32,22],[33,2,33,3],[34,2,34,22],[35,2,35,3],[35,18,36,18],[36,2,36,3],[41,3,41,9],[42,4,42,9],[42,17,42,23],[38,3,38,9],[38,17,38,23],[39,4,39,9],[39,17,39,23],[40,4,40,9],[40,17,40,23]]}
[null,"CS  DESSERTS DE RESTAURANT - POLE 1"]
[null,"SUIVI DE L'EVALUATION DES COMPETENCES SUR LE CYCLE DE FORMATION "]
[null,"Session : ",null,"NOM Prénom de l'élève/apprenti :","ACADEMIE :",null,null,null,null,null,null,"Lycée/CFA :",null,null,null,null,null,null,null,"Lieux de PFMP/Entreprise de formation :",null,"Nom des Tuteurs/Maitre d'apprentissage :"]
[null,{"$f":"Administratif!$B$5","v":0},null,{"$f":"INDIRECT(Data!$A$20&\"B\"&Data!B21)","v":0},{"$f":"Administratif!B3","v":0},null,null,null,null,null,null,{"$f":"Administratif!$B$7","v":0},null,null,null,null,null,null,null,{"$f":"INDIRECT(Data!$A$20&\"D\"&Data!$B$21)","v":0},null,{"$f":"INDIRECT(Data!$A$20&\"H\"&Data!$B$21)","v":0}]
[null,null,null,null,null,null,null,null,null,null,null,null,null,null,null,null,null,null,null,{"$f":"INDIRECT(Data!$A$20&\"E\"&Data!$B$21)","v":0},null,{"$f":"INDIRECT(Data!$A$20&\"I\"&Data!$B$21)","v":0}]
[null,null,null,null,null,null,null,null,null,null,null,null,null,null,null,null,null,null,null,{"$f":"INDIRECT(Data!$A$20&\"F\"&Data!$B$21)","v":0},null,{"$f":"INDIRECT(Data!$A$20&\"J\"&Data!$B$21)","v":0}]
[]
[null,"RAPPEL CODES DES PALIERS DE PROFESSIONNALISATION A SAISIR >>",null,null,null,"P1 =  novice = Saisir 1",null,null,"P2 = exécutant = Saisir 2",null,null,"P3 = averti = Saisir 3",null,null,"P4 = expert = Saisir 4"]
[]
[null,"Pôle 1 - Production et envoi des desserts","Lieu d'évaluation Centre de formation/Entreprise :",null,null,null,null,null,null,null,null,null,null,null,null,null,null,null,null,"POSITIONNEMENT FINAL "]
[null,null,"Périodes",null,"Période 1",null,null,null,null,"Période 2",null,null,null,null,"Période 3",null,null,null,null,"Synthèse période 1","Synthèse période 2","Synthèse période 3","Décision finale"]
[null,null,"Activité Professionnelle 1 - Production des desserts dans le respect des règles d’hygiène et de sécurité"]
[null,null,"Organisation de la production"]
[null,null,"Planifier son travail "]
[null,null,"Organiser son poste de travail "]
[null,null,"Réalisation des préparations"]
[null,null,"Réaliser des pâtes et appareils"]
[null,null,"Apprêter des pâtes"]
[null,null,"Cuire des pâtes"]
[null,null,"Préparer des crèmes, mousses, ganaches et leurs dérivés"]
[null,null,"Préparer des fabrications glacées "]
[null,null,"Transformer les végétaux "]
[null,null,"Réaliser des inserts "]
[null,null,"Monter et assembler des préparations "]
[null,null,"Réaliser des éléments de finitions"]
[null,null,"Apprécier et rectifier la production"]
[null,null,"Activité Professionnelle 2 - Dressage, envoi des desserts et communication au cours du ser-vice dans le res-pect des règles d’hygiène et de sécurité"]
[null,null,"Préparation du poste d’envoi  "]
[null,null,"Configurer le poste d’envoi "]
[null,null,"Gestion des bons et des demandes des clients"]
[null,null,"Gérer les bons"]
[null,null,"Gérer les demandes spécifiques","Réceptionner et contrôler la livraison"]
[null,null,"Dressage"]
[null,null,"Dresser des desserts "]
[null,null,"Envoi et communication au cours du service"]
[null,null,"Envoyer les desserts "]
[null,null,"Transmettre et recevoir les informations nécessaires aux besoins du service"]
[]
[null,null,null,"Nom et signature des évaluateurs"]
[null,null,null,"Professeur/Formateur de spécialité :"]
[null,null,null,"Professeur/Formateur de spécialité :"]
[]
[null,null,null,"Tuteur/Maitre d'apprentissage :"]

{"sheet":"E3","index":5,"n_rows":43,"n_cols":23,"rows_kept":43,"cut":false,"hidden":false,"merged":[[0,1,0,22],[1,1,1,22],[2,1,2,2],[2,4,2,10],[2,11,2,17],[2,18,5,18],[2,19,2,20],[2,21,2,22],[3,1,5,2],[3,3,5,3],[7,19,7,21],[3,4,5,10],[3,11,5,17],[3,19,3,20],[3,21,3,22],[4,19,4,20],[4,21,4,22],[5,19,5,20],[5,21,5,22],[7,1,7,3],[7,8,7,9],[7,14,7,15],[7,5,7,6],[7,11,7,12],[9,1,36,1],[9,2,9,3],[9,18,10,18],[9,19,9,22],[10,2,10,3],[10,4,10,8],[10,9,10,13],[10,14,10,17],[11,2,11,22],[12,2,12,22],[26,2,26,22],[13,2,13,3],[13,18,14,18],[14,2,14,3],[15,2,15,22],[16,2,16,3],[16,18,25,18],[17,2,17,3],[18,2,18,3],[19,2,19,3],[20,2,20,3],[21,2,21,3],[22,2,22,3],[23,2,23,3],[24,2,24,3],[25,2,25,3],[27,2,27,22],[28,2,28,3],[29,2,29,22],[30,2,30,3],[30,18,31,18],[31,2,31,3],[32,2,32,22],[33,2,33,3],[34,2,34,22],[35,2,35,3],[35,18,36,18],[36,2,36,3],[41,3,41,9],[42,4,42,9],[42,17,42,23],[38,3,38,9],[38,17,38,23],[39,4,39,9],[39,17,39,23],[40,4,40,9],[40,17,40,23]]}
[null,"CS  DESSERTS DE RESTAURANT - POLE 1"]
[null,"SUIVI DE L'EVALUATION DES COMPETENCES SUR LE CYCLE DE FORMATION "]
[null,"Session : ",null,"NOM Prénom de l'élève/apprenti :","ACADEMIE :",null,null,null,null,null,null,"Lycée/CFA :",null,null,null,null,null,null,null,"Lieux de PFMP/Entreprise de formation :",null,"Nom des Tuteurs/Maitre d'apprentissage :"]
[null,{"$f":"Administratif!$B$5","v":0},null,{"$f":"INDIRECT(Data!$A$20&\"B\"&Data!B22)","v":0},{"$f":"Administratif!B3","v":0},null,null,null,null,null,null,{"$f":"Administratif!$B$7","v":0},null,null,null,null,null,null,null,{"$f":"INDIRECT(Data!$A$20&\"D\"&Data!$B$22)","v":0},null,{"$f":"INDIRECT(Data!$A$20&\"H\"&Data!$B$22)","v":0}]
[null,null,null,null,null,null,null,null,null,null,null,null,null,null,null,null,null,null,null,{"$f":"INDIRECT(Data!$A$20&\"E\"&Data!$B$22)","v":0},null,{"$f":"INDIRECT(Data!$A$20&\"I\"&Data!$B$22)","v":0}]
[null,null,null,null,null,null,null,null,null,null,null,null,null,null,null,null,null,null,null,{"$f":"INDIRECT(Data!$A$20&\"F\"&Data!$B$22)","v":0},null,{"$f":"INDIRECT(Data!$A$20&\"J\"&Data!$B$22)","v":0}]
[]
[null,"RAPPEL CODES DES PALIERS DE PROFESSIONNALISATION A SAISIR >>",null,null,null,"P1 =  novice = Saisir 1",null,null,"P2 = exécutant = Saisir 2",null,null,"P3 = averti = Saisir 3",null,null,"P4 = expert = Saisir 4"]
[]
[null,"Pôle 1 - Production et envoi des desserts","Lieu d'évaluation Centre de formation/Entreprise :",null,null,null,null,null,null,null,null,null,null,null,null,null,null,null,null,"POSITIONNEMENT FINAL "]
[null,null,"Périodes",null,"Période 1",null,null,null,null,"Période 2",null,null,null,null,"Période 3",null,null,null,null,"Synthèse période 1","Synthèse période 2","Synthèse période 3","Décision finale"]
[null,null,"Activité Professionnelle 1 - Production des desserts dans le respect des règles d’hygiène et de sécurité"]
[null,null,"Organisation de la production"]
[null,null,"Planifier son travail "]
[null,null,"Organiser son poste de travail "]
[null,null,"Réalisation des préparations"]
[null,null,"Réaliser des pâtes et appareils"]
[null,null,"Apprêter des pâtes"]
[null,null,"Cuire des pâtes"]
[null,null,"Préparer des crèmes, mousses, ganaches et leurs dérivés"]
[null,null,"Préparer des fabrications glacées "]
[null,null,"Transformer les végétaux "]
[null,null,"Réaliser des inserts "]
[null,null,"Monter et assembler des préparations "]
[null,null,"Réaliser des éléments de finitions"]
[null,null,"Apprécier et rectifier la production"]
[null,null,"Activité Professionnelle 2 - Dressage, envoi des desserts et communication au cours du ser-vice dans le res-pect des règles d’hygiène et de sécurité"]
[null,null,"Préparation du poste d’envoi  "]
[null,null,"Configurer le poste d’envoi "]
[null,null,"Gestion des bons et des demandes des clients"]
[null,null,"Gérer les bons"]
[null,null,"Gérer les demandes spécifiques","Réceptionner et contrôler la livraison"]
[null,null,"Dressage"]
[null,null,"Dresser des desserts "]
[null,null,"Envoi et communication au cours du service"]
[null,null,"Envoyer les desserts "]
[null,null,"Transmettre et recevoir les informations nécessaires aux besoins du service"]
[]
[null,null,null,"Nom et signature des évaluateurs"]
[null,null,null,"Professeur/Formateur de spécialité :"]
[null,null,null,"Professeur/Formateur de spécialité :"]
[]
[null,null,null,"Tuteur/Maitre d'apprentissage :"]

{"sheet":"E4","index":6,"n_rows":43,"n_cols":23,"rows_kept":43,"cut":false,"hidden":false,"merged":[[0,1,0,22],[1,1,1,22],[2,1,2,2],[2,4,2,10],[2,11,2,17],[2,18,5,18],[2,19,2,20],[2,21,2,22],[3,1,5,2],[3,3,5,3],[7,19,7,21],[3,4,5,10],[3,11,5,17],[3,19,3,20],[3,21,3,22],[4,19,4,20],[4,21,4,22],[5,19,5,20],[5,21,5,22],[7,1,7,3],[7,8,7,9],[7,14,7,15],[7,5,7,6],[7,11,7,12],[9,1,36,1],[9,2,9,3],[9,18,10,18],[9,19,9,22],[10,2,10,3],[10,4,10,8],[10,9,10,13],[10,14,10,17],[11,2,11,22],[12,2,12,22],[26,2,26,22],[13,2,13,3],[13,18,14,18],[14,2,14,3],[15,2,15,22],[16,2,16,3],[16,18,25,18],[17,2,17,3],[18,2,18,3],[19,2,19,3],[20,2,20,3],[21,2,21,3],[22,2,22,3],[23,2,23,3],[24,2,24,3],[25,2,25,3],[27,2,27,22],[28,2,28,3],[29,2,29,22],[30,2,30,3],[30,18,31,18],[31,2,31,3],[32,2,32,22],[33,2,33,3],[34,2,34,22],[35,2,35,3],[35,18,36,18],[36,2,36,3],[41,3,41,9],[42,4,42,9],[42,17,42,23],[38,3,38,9],[38,17,38,23],[39,4,39,9],[39,17,39,23],[40,4,40,9],[40,17,40,23]]}
[null,"CS  DESSERTS DE RESTAURANT - POLE 1"]
[null,"SUIVI DE L'EVALUATION DES COMPETENCES SUR LE CYCLE DE FORMATION "]
[null,"Session : ",null,"NOM Prénom de l'élève/apprenti :","ACADEMIE :",null,null,null,null,null,null,"Lycée/CFA :",null,null,null,null,null,null,null,"Lieux de PFMP/Entreprise de formation :",null,"Nom des Tuteurs/Maitre d'apprentissage :"]
[null,{"$f":"Administratif!$B$5","v":0},null,{"$f":"INDIRECT(Data!$A$20&\"B\"&Data!B23)","v":0},{"$f":"Administratif!B3","v":0},null,null,null,null,null,null,{"$f":"Administratif!$B$7","v":0},null,null,null,null,null,null,null,{"$f":"INDIRECT(Data!$A$20&\"D\"&Data!$B$23)","v":0},null,{"$f":"INDIRECT(Data!$A$20&\"H\"&Data!$B$23)","v":0}]
[null,null,null,null,null,null,null,null,null,null,null,null,null,null,null,null,null,null,null,{"$f":"INDIRECT(Data!$A$20&\"E\"&Data!$B$23)","v":0},null,{"$f":"INDIRECT(Data!$A$20&\"I\"&Data!$B$23)","v":0}]
[null,null,null,null,null,null,null,null,null,null,null,null,null,null,null,null,null,null,null,{"$f":"INDIRECT(Data!$A$20&\"F\"&Data!$B$23)","v":0},null,{"$f":"INDIRECT(Data!$A$20&\"J\"&Data!$B$23)","v":0}]
[]
[null,"RAPPEL CODES DES PALIERS DE PROFESSIONNALISATION A SAISIR >>",null,null,null,"P1 =  novice = Saisir 1",null,null,"P2 = exécutant = Saisir 2",null,null,"P3 = averti = Saisir 3",null,null,"P4 = expert = Saisir 4"]
[]
[null,"Pôle 1 - Production et envoi des desserts","Lieu d'évaluation Centre de formation/Entreprise :",null,null,null,null,null,null,null,null,null,null,null,null,null,null,null,null,"POSITIONNEMENT FINAL "]
[null,null,"Périodes",null,"Période 1",null,null,null,null,"Période 2",null,null,null,null,"Période 3",null,null,null,null,"Synthèse période 1","Synthèse période 2","Synthèse période 3","Décision finale"]
[null,null,"Activité Professionnelle 1 - Production des desserts dans le respect des règles d’hygiène et de sécurité"]
[null,null,"Organisation de la production"]
[null,null,"Planifier son travail "]
[null,null,"Organiser son poste de travail "]
[null,null,"Réalisation des préparations"]
[null,null,"Réaliser des pâtes et appareils"]
[null,null,"Apprêter des pâtes"]
[null,null,"Cuire des pâtes"]
[null,null,"Préparer des crèmes, mousses, ganaches et leurs dérivés"]
[null,null,"Préparer des fabrications glacées "]
[null,null,"Transformer les végétaux "]
[null,null,"Réaliser des inserts "]
[null,null,"Monter et assembler des préparations "]
[null,null,"Réaliser des éléments de finitions"]
[null,null,"Apprécier et rectifier la production"]
[null,null,"Activité Professionnelle 2 - Dressage, envoi des desserts et communication au cours du ser-vice dans le res-pect des règles d’hygiène et de sécurité"]
[null,null,"Préparation du poste d’envoi  "]
[null,null,"Configurer le poste d’envoi "]
[null,null,"Gestion des bons et des demandes des clients"]
[null,null,"Gérer les bons"]
[null,null,"Gérer les demandes spécifiques","Réceptionner et contrôler la livraison"]
[null,null,"Dressage"]
[null,null,"Dresser des desserts "]
[null,null,"Envoi et communication au cours du service"]
[null,null,"Envoyer les desserts "]
[null,null,"Transmettre et recevoir les informations nécessaires aux besoins du service"]
[]
[null,null,null,"Nom et signature des évaluateurs"]
[null,null,null,"Professeur/Formateur de spécialité :"]
[null,null,null,"Professeur/Formateur de spécialité :"]
[]
[null,null,null,"Tuteur/Maitre d'apprentissage :"]

{"sheet":"E5","index":7,"n_rows":43,"n_cols":23,"rows_kept":43,"cut":false,"hidden":false,"merged":[[0,1,0,22],[1,1,1,22],[2,1,2,2],[2,4,2,10],[2,11,2,17],[2,18,5,18],[2,19,2,20],[2,21,2,22],[3,1,5,2],[3,3,5,3],[7,19,7,21],[3,4,5,10],[3,11,5,17],[3,19,3,20],[3,21,3,22],[4,19,4,20],[4,21,4,22],[5,19,5,20],[5,21,5,22],[7,1,7,3],[7,8,7,9],[7,14,7,15],[7,5,7,6],[7,11,7,12],[9,1,36,1],[9,2,9,3],[9,18,10,18],[9,19,9,22],[10,2,10,3],[10,4,10,8],[10,9,10,13],[10,14,10,17],[11,2,11,22],[12,2,12,22],[26,2,26,22],[13,2,13,3],[13,18,14,18],[14,2,14,3],[15,2,15,22],[16,2,16,3],[16,18,25,18],[17,2,17,3],[18,2,18,3],[19,2,19,3],[20,2,20,3],[21,2,21,3],[22,2,22,3],[23,2,23,3],[24,2,24,3],[25,2,25,3],[27,2,27,22],[28,2,28,3],[29,2,29,22],[30,2,30,3],[30,18,31,18],[31,2,31,3],[32,2,32,22],[33,2,33,3],[34,2,34,22],[35,2,35,3],[35,18,36,18],[36,2,36,3],[41,3,41,9],[42,4,42,9],[42,17,42,23],[38,3,38,9],[38,17,38,23],[39,4,39,9],[39,17,39,23],[40,4,40,9],[40,17,40,23]]}
[null,"CS  DESSERTS DE RESTAURANT - POLE 1"]
[null,"SUIVI DE L'EVALUATION DES COMPETENCES SUR LE CYCLE DE FORMATION "]
[null,"Session : ",null,"NOM Prénom de l'élève/apprenti :","ACADEMIE :",null,null,null,null,null,null,"Lycée/CFA :",null,null,null,null,null,null,null,"Lieux de PFMP/Entreprise de formation :",null,"Nom des Tuteurs/Maitre d'apprentissage :"]
[null,{"$f":"Administratif!$B$5","v":0},null,{"$f":"INDIRECT(Data!$A$20&\"B\"&Data!B24)","v":0},{"$f":"Administratif!B3","v":0},null,null,null,null,null,null,{"$f":"Administratif!$B$7","v":0},null,null,null,null,null,null,null,{"$f":"INDIRECT(Data!$A$20&\"D\"&Data!$B$24)","v":0},null,{"$f":"INDIRECT(Data!$A$20&\"H\"&Data!$B$24)","v":0}]
[null,null,null,null,null,null,null,null,null,null,null,null,null,null,null,null,null,null,null,{"$f":"INDIRECT(Data!$A$20&\"E\"&Data!$B$24)","v":0},null,{"$f":"INDIRECT(Data!$A$20&\"I\"&Data!$B$24)","v":0}]
[null,null,null,null,null,null,null,null,null,null,null,null,null,null,null,null,null,null,null,{"$f":"INDIRECT(Data!$A$20&\"F\"&Data!$B$24)","v":0},null,{"$f":"INDIRECT(Data!$A$20&\"J\"&Data!$B$24)","v":0}]
[]
[null,"RAPPEL CODES DES PALIERS DE PROFESSIONNALISATION A SAISIR >>",null,null,null,"P1 =  novice = Saisir 1",null,null,"P2 = exécutant = Saisir 2",null,null,"P3 = averti = Saisir 3",null,null,"P4 = expert = Saisir 4"]
[]
[null,"Pôle 1 - Production et envoi des desserts","Lieu d'évaluation Centre de formation/Entreprise :",null,null,null,null,null,null,null,null,null,null,null,null,null,null,null,null,"POSITIONNEMENT FINAL "]
[null,null,"Périodes",null,"Période 1",null,null,null,null,"Période 2",null,null,null,null,"Période 3",null,null,null,null,"Synthèse période 1","Synthèse période 2","Synthèse période 3","Décision finale"]
[null,null,"Activité Professionnelle 1 - Production des desserts dans le respect des règles d’hygiène et de sécurité"]
[null,null,"Organisation de la production"]
[null,null,"Planifier son travail "]
[null,null,"Organiser son poste de travail "]
[null,null,"Réalisation des préparations"]
[null,null,"Réaliser des pâtes et appareils"]
[null,null,"Apprêter des pâtes"]
[null,null,"Cuire des pâtes"]
[null,null,"Préparer des crèmes, mousses, ganaches et leurs dérivés"]
[null,null,"Préparer des fabrications glacées "]
[null,null,"Transformer les végétaux "]
[null,null,"Réaliser des inserts "]
[null,null,"Monter et assembler des préparations "]
[null,null,"Réaliser des éléments de finitions"]
[null,null,"Apprécier et rectifier la production"]
[null,null,"Activité Professionnelle 2 - Dressage, envoi des desserts et communication au cours du ser-vice dans le res-pect des règles d’hygiène et de sécurité"]
[null,null,"Préparation du poste d’envoi  "]
[null,null,"Configurer le poste d’envoi "]
[null,null,"Gestion des bons et des demandes des clients"]
[null,null,"Gérer les bons"]
[null,null,"Gérer les demandes spécifiques","Réceptionner et contrôler la livraison"]
[null,null,"Dressage"]
[null,null,"Dresser des desserts "]
[null,null,"Envoi et communication au cours du service"]
[null,null,"Envoyer les desserts "]
[null,null,"Transmettre et recevoir les informations nécessaires aux besoins du service"]
[]
[null,null,null,"Nom et signature des évaluateurs"]
[null,null,null,"Professeur/Formateur de spécialité :"]
[null,null,null,"Professeur/Formateur de spécialité :"]
[]
[null,null,null,"Tuteur/Maitre d'apprentissage :"]

{"sheet":"E6","index":8,"n_rows":43,"n_cols":23,"rows_kept":43,"cut":false,"hidden":false,"merged":[[0,1,0,22],[1,1,1,22],[2,1,2,2],[2,4,2,10],[2,11,2,17],[2,18,5,18],[2,19,2,20],[2,21,2,22],[3,1,5,2],[3,3,5,3],[7,19,7,21],[3,4,5,10],[3,11,5,17],[3,19,3,20],[3,21,3,22],[4,19,4,20],[4,21,4,22],[5,19,5,20],[5,21,5,22],[7,1,7,3],[7,8,7,9],[7,14,7,15],[7,5,7,6],[7,11,7,12],[9,1,36,1],[9,2,9,3],[9,18,10,18],[9,19,9,22],[10,2,10,3],[10,4,10,8],[10,9,10,13],[10,14,10,17],[11,2,11,22],[12,2,12,22],[26,2,26,22],[13,2,13,3],[13,18,14,18],[14,2,14,3],[15,2,15,22],[16,2,16,3],[16,18,25,18],[17,2,17,3],[18,2,18,3],[19,2,19,3],[20,2,20,3],[21,2,21,3],[22,2,22,3],[23,2,23,3],[24,2,24,3],[25,2,25,3],[27,2,27,22],[28,2,28,3],[29,2,29,22],[30,2,30,3],[30,18,31,18],[31,2,31,3],[32,2,32,22],[33,2,33,3],[34,2,34,22],[35,2,35,3],[35,18,36,18],[36,2,36,3],[41,3,41,9],[42,4,42,9],[42,17,42,23],[38,3,38,9],[38,17,38,23],[39,4,39,9],[39,17,39,23],[40,4,40,9],[40,17,40,23]]}
[null,"CS  DESSERTS DE RESTAURANT - POLE 1"]
[null,"SUIVI DE L'EVALUATION DES COMPETENCES SUR LE CYCLE DE FORMATION "]
[null,"Session : ",null,"NOM Prénom de l'élève/apprenti :","ACADEMIE :",null,null,null,null,null,null,"Lycée/CFA :",null,null,null,null,null,null,null,"Lieux de PFMP/Entreprise de formation :",null,"Nom des Tuteurs/Maitre d'apprentissage :"]
[null,{"$f":"Administratif!$B$5","v":0},null,{"$f":"INDIRECT(Data!$A$20&\"B\"&Data!B25)","v":0},{"$f":"Administratif!B3","v":0},null,null,null,null,null,null,{"$f":"Administratif!$B$7","v":0},null,null,null,null,null,null,null,{"$f":"INDIRECT(Data!$A$20&\"D\"&Data!$B$25)","v":0},null,{"$f":"INDIRECT(Data!$A$20&\"H\"&Data!$B$25)","v":0}]
[null,null,null,null,null,null,null,null,null,null,null,null,null,null,null,null,null,null,null,{"$f":"INDIRECT(Data!$A$20&\"E\"&Data!$B$25)","v":0},null,{"$f":"INDIRECT(Data!$A$20&\"I\"&Data!$B$25)","v":0}]
[null,null,null,null,null,null,null,null,null,null,null,null,null,null,null,null,null,null,null,{"$f":"INDIRECT(Data!$A$20&\"F\"&Data!$B$25)","v":0},null,{"$f":"INDIRECT(Data!$A$20&\"J\"&Data!$B$25)","v":0}]
[]
[null,"RAPPEL CODES DES PALIERS DE PROFESSIONNALISATION A SAISIR >>",null,null,null,"P1 =  novice = Saisir 1",null,null,"P2 = exécutant = Saisir 2",null,null,"P3 = averti = Saisir 3",null,null,"P4 = expert = Saisir 4"]
[]
[null,"Pôle 1 - Production et envoi des desserts","Lieu d'évaluation Centre de formation/Entreprise :",null,null,null,null,null,null,null,null,null,null,null,null,null,null,null,null,"POSITIONNEMENT FINAL "]
[null,null,"Périodes",null,"Période 1",null,null,null,null,"Période 2",null,null,null,null,"Période 3",null,null,null,null,"Synthèse période 1","Synthèse période 2","Synthèse période 3","Décision finale"]
[null,null,"Activité Professionnelle 1 - Production des desserts dans le respect des règles d’hygiène et de sécurité"]
[null,null,"Organisation de la production"]
[null,null,"Planifier son travail "]
[null,null,"Organiser son poste de travail "]
[null,null,"Réalisation des préparations"]
[null,null,"Réaliser des pâtes et appareils"]
[null,null,"Apprêter des pâtes"]
[null,null,"Cuire des pâtes"]
[null,null,"Préparer des crèmes, mousses, ganaches et leurs dérivés"]
[null,null,"Préparer des fabrications glacées "]
[null,null,"Transformer les végétaux "]
[null,null,"Réaliser des inserts "]
[null,null,"Monter et assembler des préparations "]
[null,null,"Réaliser des éléments de finitions"]
[null,null,"Apprécier et rectifier la production"]
[null,null,"Activité Professionnelle 2 - Dressage, envoi des desserts et communication au cours du ser-vice dans le res-pect des règles d’hygiène et de sécurité"]
[null,null,"Préparation du poste d’envoi  "]
[null,null,"Configurer le poste d’envoi "]
[null,null,"Gestion des bons et des demandes des clients"]
[null,null,"Gérer les bons"]
[null,null,"Gérer les demandes spécifiques","Réceptionner et contrôler la livraison"]
[null,null,"Dressage"]
[null,null,"Dresser des desserts "]
[null,null,"Envoi et communication au cours du service"]
[null,null,"Envoyer les desserts "]
[null,null,"Transmettre et recevoir les informations nécessaires aux besoins du service"]
[]
[null,null,null,"Nom et signature des évaluateurs"]
[null,null,null,"Professeur/Formateur de spécialité :"]
[null,null,null,"Professeur/Formateur de spécialité :"]
[]
[null,null,null,"Tuteur/Maitre d'apprentissage :"]

{"sheet":"E7","index":9,"n_rows":43,"n_cols":23,"rows_kept":43,"cut":false,"hidden":false,"merged":[[0,1,0,22],[1,1,1,22],[2,1,2,2],[2,4,2,10],[2,11,2,17],[2,18,5,18],[2,19,2,20],[2,21,2,22],[3,1,5,2],[3,3,5,3],[7,19,7,21],[3,4,5,10],[3,11,5,17],[3,19,3,20],[3,21,3,22],[4,19,4,20],[4,21,4,22],[5,19,5,20],[5,21,5,22],[7,1,7,3],[7,8,7,9],[7,14,7,15],[7,5,7,6],[7,11,7,12],[9,1,36,1],[9,2,9,3],[9,18,10,18],[9,19,9,22],[10,2,10,3],[10,4,10,8],[10,9,10,13],[10,14,10,17],[11,2,11,22],[12,2,12,22],[26,2,26,22],[13,2,13,3],[13,18,14,18],[14,2,14,3],[15,2,15,22],[16,2,16,3],[16,18,25,18],[17,2,17,3],[18,2,18,3],[19,2,19,3],[20,2,20,3],[21,2,21,3],[22,2,22,3],[23,2,23,3],[24,2,24,3],[25,2,25,3],[27,2,27,22],[28,2,28,3],[29,2,29,22],[30,2,30,3],[30,18,31,18],[31,2,31,3],[32,2,32,22],[33,2,33,3],[34,2,34,22],[35,2,35,3],[35,18,36,18],[36,2,36,3],[41,3,41,9],[42,4,42,9],[42,17,42,23],[38,3,38,9],[38,17,38,23],[39,4,39,9],[39,17,39,23],[40,4,40,9],[40,17,40,23]]}
[null,"CS  DESSERTS DE RESTAURANT - POLE 1"]
[null,"SUIVI DE L'EVALUATION DES COMPETENCES SUR LE CYCLE DE FORMATION "]
[null,"Session : ",null,"NOM Prénom de l'élève/apprenti :","ACADEMIE :",null,null,null,null,null,null,"Lycée/CFA :",null,null,null,null,null,null,null,"Lieux de PFMP/Entreprise de formation :",null,"Nom des Tuteurs/Maitre d'apprentissage :"]
[null,{"$f":"Administratif!$B$5","v":0},null,{"$f":"INDIRECT(Data!$A$20&\"B\"&Data!B26)","v":0},{"$f":"Administratif!B3","v":0},null,null,null,null,null,null,{"$f":"Administratif!$B$7","v":0},null,null,null,null,null,null,null,{"$f":"INDIRECT(Data!$A$20&\"D\"&Data!$B$26)","v":0},null,{"$f":"INDIRECT(Data!$A$20&\"H\"&Data!$B$26)","v":0}]
[null,null,null,null,null,null,null,null,null,null,null,null,null,null,null,null,null,null,null,{"$f":"INDIRECT(Data!$A$20&\"E\"&Data!$B$26)","v":0},null,{"$f":"INDIRECT(Data!$A$20&\"I\"&Data!$B$26)","v":0}]
[null,null,null,null,null,null,null,null,null,null,null,null,null,null,null,null,null,null,null,{"$f":"INDIRECT(Data!$A$20&\"F\"&Data!$B$26)","v":0},null,{"$f":"INDIRECT(Data!$A$20&\"J\"&Data!$B$26)","v":0}]
[]
[null,"RAPPEL CODES DES PALIERS DE PROFESSIONNALISATION A SAISIR >>",null,null,null,"P1 =  novice = Saisir 1",null,null,"P2 = exécutant = Saisir 2",null,null,"P3 = averti = Saisir 3",null,null,"P4 = expert = Saisir 4"]
[]
[null,"Pôle 1 - Production et envoi des desserts","Lieu d'évaluation Centre de formation/Entreprise :",null,null,null,null,null,null,null,null,null,null,null,null,null,null,null,null,"POSITIONNEMENT FINAL "]
[null,null,"Périodes",null,"Période 1",null,null,null,null,"Période 2",null,null,null,null,"Période 3",null,null,null,null,"Synthèse période 1","Synthèse période 2","Synthèse période 3","Décision finale"]
[null,null,"Activité Professionnelle 1 - Production des desserts dans le respect des règles d’hygiène et de sécurité"]
[null,null,"Organisation de la production"]
[null,null,"Planifier son travail "]
[null,null,"Organiser son poste de travail "]
[null,null,"Réalisation des préparations"]
[null,null,"Réaliser des pâtes et appareils"]
[null,null,"Apprêter des pâtes"]
[null,null,"Cuire des pâtes"]
[null,null,"Préparer des crèmes, mousses, ganaches et leurs dérivés"]
[null,null,"Préparer des fabrications glacées "]
[null,null,"Transformer les végétaux "]
[null,null,"Réaliser des inserts "]
[null,null,"Monter et assembler des préparations "]
[null,null,"Réaliser des éléments de finitions"]
[null,null,"Apprécier et rectifier la production"]
[null,null,"Activité Professionnelle 2 - Dressage, envoi des desserts et communication au cours du ser-vice dans le res-pect des règles d’hygiène et de sécurité"]
[null,null,"Préparation du poste d’envoi  "]
[null,null,"Configurer le poste d’envoi "]
[null,null,"Gestion des bons et des demandes des clients"]
[null,null,"Gérer les bons"]
[null,null,"Gérer les demandes spécifiques","Réceptionner et contrôler la livraison"]
[null,null,"Dressage"]
[null,null,"Dresser des desserts "]
[null,null,"Envoi et communication au cours du service"]
[null,null,"Envoyer les desserts "]
[null,null,"Transmettre et recevoir les informations nécessaires aux besoins du service"]
[]
[null,null,null,"Nom et signature des évaluateurs"]
[null,null,null,"Professeur/Formateur de spécialité :"]
[null,null,null,"Professeur/Formateur de spécialité :"]
[]
[null,null,null,"Tuteur/Maitre d'apprentissage :"]

{"sheet":"E8","index":10,"n_rows":43,"n_cols":23,"rows_kept":43,"cut":false,"hidden":false,"merged":[[0,1,0,22],[1,1,1,22],[2,1,2,2],[2,4,2,10],[2,11,2,17],[2,18,5,18],[2,19,2,20],[2,21,2,22],[3,1,5,2],[3,3,5,3],[7,19,7,21],[3,4,5,10],[3,11,5,17],[3,19,3,20],[3,21,3,22],[4,19,4,20],[4,21,4,22],[5,19,5,20],[5,21,5,22],[7,1,7,3],[7,8,7,9],[7,14,7,15],[7,5,7,6],[7,11,7,12],[9,1,36,1],[9,2,9,3],[9,18,10,18],[9,19,9,22],[10,2,10,3],[10,4,10,8],[10,9,10,13],[10,14,10,17],[11,2,11,22],[12,2,12,22],[26,2,26,22],[13,2,13,3],[13,18,14,18],[14,2,14,3],[15,2,15,22],[16,2,16,3],[16,18,25,18],[17,2,17,3],[18,2,18,3],[19,2,19,3],[20,2,20,3],[21,2,21,3],[22,2,22,3],[23,2,23,3],[24,2,24,3],[25,2,25,3],[27,2,27,22],[28,2,28,3],[29,2,29,22],[30,2,30,3],[30,18,31,18],[31,2,31,3],[32,2,32,22],[33,2,33,3],[34,2,34,22],[35,2,35,3],[35,18,36,18],[36,2,36,3],[41,3,41,9],[42,4,42,9],[42,17,42,23],[38,3,38,9],[38,17,38,23],[39,4,39,9],[39,17,39,23],[40,4,40,9],[40,17,40,23]]}
[null,"CS  DESSERTS DE RESTAURANT - POLE 1"]
[null,"SUIVI DE L'EVALUATION DES COMPETENCES SUR LE CYCLE DE FORMATION "]
[null,"Session : ",null,"NOM Prénom de l'élève/apprenti :","ACADEMIE :",null,null,null,null,null,null,"Lycée/CFA :",null,null,null,null,null,null,null,"Lieux de PFMP/Entreprise de formation :",null,"Nom des Tuteurs/Maitre d'apprentissage :"]
[null,{"$f":"Administratif!$B$5","v":0},null,{"$f":"INDIRECT(Data!$A$20&\"B\"&Data!B27)","v":0},{"$f":"Administratif!B3","v":0},null,null,null,null,null,null,{"$f":"Administratif!$B$7","v":0},null,null,null,null,null,null,null,{"$f":"INDIRECT(Data!$A$20&\"D\"&Data!$B$27)","v":0},null,{"$f":"INDIRECT(Data!$A$20&\"H\"&Data!$B$27)","v":0}]
[null,null,null,null,null,null,null,null,null,null,null,null,null,null,null,null,null,null,null,{"$f":"INDIRECT(Data!$A$20&\"E\"&Data!$B$27)","v":0},null,{"$f":"INDIRECT(Data!$A$20&\"I\"&Data!$B$27)","v":0}]
[null,null,null,null,null,null,null,null,null,null,null,null,null,null,null,null,null,null,null,{"$f":"INDIRECT(Data!$A$20&\"F\"&Data!$B$27)","v":0},null,{"$f":"INDIRECT(Data!$A$20&\"J\"&Data!$B$27)","v":0}]
[]
[null,"RAPPEL CODES DES PALIERS DE PROFESSIONNALISATION A SAISIR >>",null,null,null,"P1 =  novice = Saisir 1",null,null,"P2 = exécutant = Saisir 2",null,null,"P3 = averti = Saisir 3",null,null,"P4 = expert = Saisir 4"]
[]
[null,"Pôle 1 - Production et envoi des desserts","Lieu d'évaluation Centre de formation/Entreprise :",null,null,null,null,null,null,null,null,null,null,null,null,null,null,null,null,"POSITIONNEMENT FINAL "]
[null,null,"Périodes",null,"Période 1",null,null,null,null,"Période 2",null,null,null,null,"Période 3",null,null,null,null,"Synthèse période 1","Synthèse période 2","Synthèse période 3","Décision finale"]
[null,null,"Activité Professionnelle 1 - Production des desserts dans le respect des règles d’hygiène et de sécurité"]
[null,null,"Organisation de la production"]
[null,null,"Planifier son travail "]
[null,null,"Organiser son poste de travail "]
[null,null,"Réalisation des préparations"]
[null,null,"Réaliser des pâtes et appareils"]
[null,null,"Apprêter des pâtes"]
[null,null,"Cuire des pâtes"]
[null,null,"Préparer des crèmes, mousses, ganaches et leurs dérivés"]
[null,null,"Préparer des fabrications glacées "]
[null,null,"Transformer les végétaux "]
[null,null,"Réaliser des inserts "]
[null,null,"Monter et assembler des préparations "]
[null,null,"Réaliser des éléments de finitions"]
[null,null,"Apprécier et rectifier la production"]
[null,null,"Activité Professionnelle 2 - Dressage, envoi des desserts et communication au cours du ser-vice dans le res-pect des règles d’hygiène et de sécurité"]
[null,null,"Préparation du poste d’envoi  "]
[null,null,"Configurer le poste d’envoi "]
[null,null,"Gestion des bons et des demandes des clients"]
[null,null,"Gérer les bons"]
[null,null,"Gérer les demandes spécifiques","Réceptionner et contrôler la livraison"]
[null,null,"Dressage"]
[null,null,"Dresser des desserts "]
[null,null,"Envoi et communication au cours du service"]
[null,null,"Envoyer les desserts "]
[null,null,"Transmettre et recevoir les informations nécessaires aux besoins du service"]
[]
[null,null,null,"Nom et signature des évaluateurs"]
[null,null,null,"Professeur/Formateur de spécialité :"]
[null,null,null,"Professeur/Formateur de spécialité :"]
[]
[null,null,null,"Tuteur/Maitre d'apprentissage :"]

{"sheet":"E9","index":11,"n_rows":43,"n_cols":23,"rows_kept":43,"cut":false,"hidden":false,"merged":[[0,1,0,22],[1,1,1,22],[2,1,2,2],[2,4,2,10],[2,11,2,17],[2,18,5,18],[2,19,2,20],[2,21,2,22],[3,1,5,2],[3,3,5,3],[7,19,7,21],[3,4,5,10],[3,11,5,17],[3,19,3,20],[3,21,3,22],[4,19,4,20],[4,21,4,22],[5,19,5,20],[5,21,5,22],[7,1,7,3],[7,8,7,9],[7,14,7,15],[7,5,7,6],[7,11,7,12],[9,1,36,1],[9,2,9,3],[9,18,10,18],[9,19,9,22],[10,2,10,3],[10,4,10,8],[10,9,10,13],[10,14,10,17],[11,2,11,22],[12,2,12,22],[26,2,26,22],[13,2,13,3],[13,18,14,18],[14,2,14,3],[15,2,15,22],[16,2,16,3],[16,18,25,18],[17,2,17,3],[18,2,18,3],[19,2,19,3],[20,2,20,3],[21,2,21,3],[22,2,22,3],[23,2,23,3],[24,2,24,3],[25,2,25,3],[27,2,27,22],[28,2,28,3],[29,2,29,22],[30,2,30,3],[30,18,31,18],[31,2,31,3],[32,2,32,22],[33,2,33,3],[34,2,34,22],[35,2,35,3],[35,18,36,18],[36,2,36,3],[41,3,41,9],[42,4,42,9],[42,17,42,23],[38,3,38,9],[38,17,38,23],[39,4,39,9],[39,17,39,23],[40,4,40,9],[40,17,40,23]]}
[null,"CS  DESSERTS DE RESTAURANT - POLE 1"]
[null,"SUIVI DE L'EVALUATION DES COMPETENCES SUR LE CYCLE DE FORMATION "]
[null,"Session : ",null,"NOM Prénom de l'élève/apprenti :","ACADEMIE :",null,null,null,null,null,null,"Lycée/CFA :",null,null,null,null,null,null,null,"Lieux de PFMP/Entreprise de formation :",null,"Nom des Tuteurs/Maitre d'apprentissage :"]
[null,{"$f":"Administratif!$B$5","v":0},null,{"$f":"INDIRECT(Data!$A$20&\"B\"&Data!B28)","v":0},{"$f":"Administratif!B3","v":0},null,null,null,null,null,null,{"$f":"Administratif!$B$7","v":0},null,null,null,null,null,null,null,{"$f":"INDIRECT(Data!$A$20&\"D\"&Data!$B$28)","v":0},null,{"$f":"INDIRECT(Data!$A$20&\"H\"&Data!$B$28)","v":0}]
[null,null,null,null,null,null,null,null,null,null,null,null,null,null,null,null,null,null,null,{"$f":"INDIRECT(Data!$A$20&\"E\"&Data!$B$28)","v":0},null,{"$f":"INDIRECT(Data!$A$20&\"I\"&Data!$B$28)","v":0}]
[null,null,null,null,null,null,null,null,null,null,null,null,null,null,null,null,null,null,null,{"$f":"INDIRECT(Data!$A$20&\"F\"&Data!$B$28)","v":0},null,{"$f":"INDIRECT(Data!$A$20&\"J\"&Data!$B$28)","v":0}]
[]
[null,"RAPPEL CODES DES PALIERS DE PROFESSIONNALISATION A SAISIR >>",null,null,null,"P1 =  novice = Saisir 1",null,null,"P2 = exécutant = Saisir 2",null,null,"P3 = averti = Saisir 3",null,null,"P4 = expert = Saisir 4"]
[]
[null,"Pôle 1 - Production et envoi des desserts","Lieu d'évaluation Centre de formation/Entreprise :",null,null,null,null,null,null,null,null,null,null,null,null,null,null,null,null,"POSITIONNEMENT FINAL "]
[null,null,"Périodes",null,"Période 1",null,null,null,null,"Période 2",null,null,null,null,"Période 3",null,null,null,null,"Synthèse période 1","Synthèse période 2","Synthèse période 3","Décision finale"]
[null,null,"Activité Professionnelle 1 - Production des desserts dans le respect des règles d’hygiène et de sécurité"]
[null,null,"Organisation de la production"]
[null,null,"Planifier son travail "]
[null,null,"Organiser son poste de travail "]
[null,null,"Réalisation des préparations"]
[null,null,"Réaliser des pâtes et appareils"]
[null,null,"Apprêter des pâtes"]
[null,null,"Cuire des pâtes"]
[null,null,"Préparer des crèmes, mousses, ganaches et leurs dérivés"]
[null,null,"Préparer des fabrications glacées "]
[null,null,"Transformer les végétaux "]
[null,null,"Réaliser des inserts "]
[null,null,"Monter et assembler des préparations "]
[null,null,"Réaliser des éléments de finitions"]
[null,null,"Apprécier et rectifier la production"]
[null,null,"Activité Professionnelle 2 - Dressage, envoi des desserts et communication au cours du ser-vice dans le res-pect des règles d’hygiène et de sécurité"]
[null,null,"Préparation du poste d’envoi  "]
[null,null,"Configurer le poste d’envoi "]
[null,null,"Gestion des bons et des demandes des clients"]
[null,null,"Gérer les bons"]
[null,null,"Gérer les demandes spécifiques","Réceptionner et contrôler la livraison"]
[null,null,"Dressage"]
[null,null,"Dresser des desserts "]
[null,null,"Envoi et communication au cours du service"]
[null,null,"Envoyer les desserts "]
[null,null,"Transmettre et recevoir les informations nécessaires aux besoins du service"]
[]
[null,null,null,"Nom et signature des évaluateurs"]
[null,null,null,"Professeur/Formateur de spécialité :"]
[null,null,null,"Professeur/Formateur de spécialité :"]
[]
[null,null,null,"Tuteur/Maitre d'apprentissage :"]

{"sheet":"E10","index":12,"n_rows":43,"n_cols":23,"rows_kept":43,"cut":false,"hidden":false,"merged":[[0,1,0,22],[1,1,1,22],[2,1,2,2],[2,4,2,10],[2,11,2,17],[2,18,5,18],[2,19,2,20],[2,21,2,22],[3,1,5,2],[3,3,5,3],[7,19,7,21],[3,4,5,10],[3,11,5,17],[3,19,3,20],[3,21,3,22],[4,19,4,20],[4,21,4,22],[5,19,5,20],[5,21,5,22],[7,1,7,3],[7,8,7,9],[7,14,7,15],[7,5,7,6],[7,11,7,12],[9,1,36,1],[9,2,9,3],[9,18,10,18],[9,19,9,22],[10,2,10,3],[10,4,10,8],[10,9,10,13],[10,14,10,17],[11,2,11,22],[12,2,12,22],[26,2,26,22],[13,2,13,3],[13,18,14,18],[14,2,14,3],[15,2,15,22],[16,2,16,3],[16,18,25,18],[17,2,17,3],[18,2,18,3],[19,2,19,3],[20,2,20,3],[21,2,21,3],[22,2,22,3],[23,2,23,3],[24,2,24,3],[25,2,25,3],[27,2,27,22],[28,2,28,3],[29,2,29,22],[30,2,30,3],[30,18,31,18],[31,2,31,3],[32,2,32,22],[33,2,33,3],[34,2,34,22],[35,2,35,3],[35,18,36,18],[36,2,36,3],[41,3,41,9],[42,4,42,9],[42,17,42,23],[38,3,38,9],[38,17,38,23],[39,4,39,9],[39,17,39,23],[40,4,40,9],[40,17,40,23]]}
[null,"CS  DESSERTS DE RESTAURANT - POLE 1"]
[null,"SUIVI DE L'EVALUATION DES COMPETENCES SUR LE CYCLE DE FORMATION "]
[null,"Session : ",null,"NOM Prénom de l'élève/apprenti :","ACADEMIE :",null,null,null,null,null,null,"Lycée/CFA :",null,null,null,null,null,null,null,"Lieux de PFMP/Entreprise de formation :",null,"Nom des Tuteurs/Maitre d'apprentissage :"]
[null,{"$f":"Administratif!$B$5","v":0},null,{"$f":"INDIRECT(Data!$A$20&\"B\"&Data!B29)","v":0},{"$f":"Administratif!B3","v":0},null,null,null,null,null,null,{"$f":"Administratif!$B$7","v":0},null,null,null,null,null,null,null,{"$f":"INDIRECT(Data!$A$20&\"D\"&Data!$B$29)","v":0},null,{"$f":"INDIRECT(Data!$A$20&\"H\"&Data!$B$29)","v":0}]
[null,null,null,null,null,null,null,null,null,null,null,null,null,null,null,null,null,null,null,{"$f":"INDIRECT(Data!$A$20&\"E\"&Data!$B$29)","v":0},null,{"$f":"INDIRECT(Data!$A$20&\"I\"&Data!$B$29)","v":0}]
[null,null,null,null,null,null,null,null,null,null,null,null,null,null,null,null,null,null,null,{"$f":"INDIRECT(Data!$A$20&\"F\"&Data!$B$29)","v":0},null,{"$f":"INDIRECT(Data!$A$20&\"J\"&Data!$B$29)","v":0}]
[]
[null,"RAPPEL CODES DES PALIERS DE PROFESSIONNALISATION A SAISIR >>",null,null,null,"P1 =  novice = Saisir 1",null,null,"P2 = exécutant = Saisir 2",null,null,"P3 = averti = Saisir 3",null,null,"P4 = expert = Saisir 4"]
[]
[null,"Pôle 1 - Production et envoi des desserts","Lieu d'évaluation Centre de formation/Entreprise :",null,null,null,null,null,null,null,null,null,null,null,null,null,null,null,null,"POSITIONNEMENT FINAL "]
[null,null,"Périodes",null,"Période 1",null,null,null,null,"Période 2",null,null,null,null,"Période 3",null,null,null,null,"Synthèse période 1","Synthèse période 2","Synthèse période 3","Décision finale"]
[null,null,"Activité Professionnelle 1 - Production des desserts dans le respect des règles d’hygiène et de sécurité"]
[null,null,"Organisation de la production"]
[null,null,"Planifier son travail "]
[null,null,"Organiser son poste de travail "]
[null,null,"Réalisation des préparations"]
[null,null,"Réaliser des pâtes et appareils"]
[null,null,"Apprêter des pâtes"]
[null,null,"Cuire des pâtes"]
[null,null,"Préparer des crèmes, mousses, ganaches et leurs dérivés"]
[null,null,"Préparer des fabrications glacées "]
[null,null,"Transformer les végétaux "]
[null,null,"Réaliser des inserts "]
[null,null,"Monter et assembler des préparations "]
[null,null,"Réaliser des éléments de finitions"]
[null,null,"Apprécier et rectifier la production"]
[null,null,"Activité Professionnelle 2 - Dressage, envoi des desserts et communication au cours du ser-vice dans le res-pect des règles d’hygiène et de sécurité"]
[null,null,"Préparation du poste d’envoi  "]
[null,null,"Configurer le poste d’envoi "]
[null,null,"Gestion des bons et des demandes des clients"]
[null,null,"Gérer les bons"]
[null,null,"Gérer les demandes spécifiques","Réceptionner et contrôler la livraison"]
[null,null,"Dressage"]
[null,null,"Dresser des desserts "]
[null,null,"Envoi et communication au cours du service"]
[null,null,"Envoyer les desserts "]
[null,null,"Transmettre et recevoir les informations nécessaires aux besoins du service"]
[]
[null,null,null,"Nom et signature des évaluateurs"]
[null,null,null,"Professeur/Formateur de spécialité :"]
[null,null,null,"Professeur/Formateur de spécialité :"]
[]
[null,null,null,"Tuteur/Maitre d'apprentissage :"]

{"sheet":"E11","index":13,"n_rows":43,"n_cols":23,"rows_kept":43,"cut":false,"hidden":false,"merged":[[0,1,0,22],[1,1,1,22],[2,1,2,2],[2,4,2,10],[2,11,2,17],[2,18,5,18],[2,19,2,20],[2,21,2,22],[3,1,5,2],[3,3,5,3],[7,19,7,21],[3,4,5,10],[3,11,5,17],[3,19,3,20],[3,21,3,22],[4,19,4,20],[4,21,4,22],[5,19,5,20],[5,21,5,22],[7,1,7,3],[7,8,7,9],[7,14,7,15],[7,5,7,6],[7,11,7,12],[9,1,36,1],[9,2,9,3],[9,18,10,18],[9,19,9,22],[10,2,10,3],[10,4,10,8],[10,9,10,13],[10,14,10,17],[11,2,11,22],[12,2,12,22],[26,2,26,22],[13,2,13,3],[13,18,14,18],[14,2,14,3],[15,2,15,22],[16,2,16,3],[16,18,25,18],[17,2,17,3],[18,2,18,3],[19,2,19,3],[20,2,20,3],[21,2,21,3],[22,2,22,3],[23,2,23,3],[24,2,24,3],[25,2,25,3],[27,2,27,22],[28,2,28,3],[29,2,29,22],[30,2,30,3],[30,18,31,18],[31,2,31,3],[32,2,32,22],[33,2,33,3],[34,2,34,22],[35,2,35,3],[35,18,36,18],[36,2,36,3],[41,3,41,9],[42,4,42,9],[42,17,42,23],[38,3,38,9],[38,17,38,23],[39,4,39,9],[39,17,39,23],[40,4,40,9],[40,17,40,23]]}
[null,"CS  DESSERTS DE RESTAURANT - POLE 1"]
[null,"SUIVI DE L'EVALUATION DES COMPETENCES SUR LE CYCLE DE FORMATION "]
[null,"Session : ",null,"NOM Prénom de l'élève/apprenti :","ACADEMIE :",null,null,null,null,null,null,"Lycée/CFA :",null,null,null,null,null,null,null,"Lieux de PFMP/Entreprise de formation :",null,"Nom des Tuteurs/Maitre d'apprentissage :"]
[null,{"$f":"Administratif!$B$5","v":0},null,{"$f":"INDIRECT(Data!$A$20&\"B\"&Data!B30)","v":0},{"$f":"Administratif!B3","v":0},null,null,null,null,null,null,{"$f":"Administratif!$B$7","v":0},null,null,null,null,null,null,null,{"$f":"INDIRECT(Data!$A$20&\"D\"&Data!$B$30)","v":0},null,{"$f":"INDIRECT(Data!$A$20&\"H\"&Data!$B$30)","v":0}]
[null,null,null,null,null,null,null,null,null,null,null,null,null,null,null,null,null,null,null,{"$f":"INDIRECT(Data!$A$20&\"E\"&Data!$B$30)","v":0},null,{"$f":"INDIRECT(Data!$A$20&\"I\"&Data!$B$30)","v":0}]
[null,null,null,null,null,null,null,null,null,null,null,null,null,null,null,null,null,null,null,{"$f":"INDIRECT(Data!$A$20&\"F\"&Data!$B$30)","v":0},null,{"$f":"INDIRECT(Data!$A$20&\"J\"&Data!$B$30)","v":0}]
[]
[null,"RAPPEL CODES DES PALIERS DE PROFESSIONNALISATION A SAISIR >>",null,null,null,"P1 =  novice = Saisir 1",null,null,"P2 = exécutant = Saisir 2",null,null,"P3 = averti = Saisir 3",null,null,"P4 = expert = Saisir 4"]
[]
[null,"Pôle 1 - Production et envoi des desserts","Lieu d'évaluation Centre de formation/Entreprise :",null,null,null,null,null,null,null,null,null,null,null,null,null,null,null,null,"POSITIONNEMENT FINAL "]
[null,null,"Périodes",null,"Période 1",null,null,null,null,"Période 2",null,null,null,null,"Période 3",null,null,null,null,"Synthèse période 1","Synthèse période 2","Synthèse période 3","Décision finale"]
[null,null,"Activité Professionnelle 1 - Production des desserts dans le respect des règles d’hygiène et de sécurité"]
[null,null,"Organisation de la production"]
[null,null,"Planifier son travail "]
[null,null,"Organiser son poste de travail "]
[null,null,"Réalisation des préparations"]
[null,null,"Réaliser des pâtes et appareils"]
[null,null,"Apprêter des pâtes"]
[null,null,"Cuire des pâtes"]
[null,null,"Préparer des crèmes, mousses, ganaches et leurs dérivés"]
[null,null,"Préparer des fabrications glacées "]
[null,null,"Transformer les végétaux "]
[null,null,"Réaliser des inserts "]
[null,null,"Monter et assembler des préparations "]
[null,null,"Réaliser des éléments de finitions"]
[null,null,"Apprécier et rectifier la production"]
[null,null,"Activité Professionnelle 2 - Dressage, envoi des desserts et communication au cours du ser-vice dans le res-pect des règles d’hygiène et de sécurité"]
[null,null,"Préparation du poste d’envoi  "]
[null,null,"Configurer le poste d’envoi "]
[null,null,"Gestion des bons et des demandes des clients"]
[null,null,"Gérer les bons"]
[null,null,"Gérer les demandes spécifiques","Réceptionner et contrôler la livraison"]
[null,null,"Dressage"]
[null,null,"Dresser des desserts "]
[null,null,"Envoi et communication au cours du service"]
[null,null,"Envoyer les desserts "]
[null,null,"Transmettre et recevoir les informations nécessaires aux besoins du service"]
[]
[null,null,null,"Nom et signature des évaluateurs"]
[null,null,null,"Professeur/Formateur de spécialité :"]
[null,null,null,"Professeur/Formateur de spécialité :"]
[]
[null,null,null,"Tuteur/Maitre d'apprentissage :"]

{"sheet":"E12","index":14,"n_rows":43,"n_cols":23,"rows_kept":43,"cut":false,"hidden":false,"merged":[[0,1,0,22],[1,1,1,22],[2,1,2,2],[2,4,2,10],[2,11,2,17],[2,18,5,18],[2,19,2,20],[2,21,2,22],[3,1,5,2],[3,3,5,3],[7,19,7,21],[3,4,5,10],[3,11,5,17],[3,19,3,20],[3,21,3,22],[4,19,4,20],[4,21,4,22],[5,19,5,20],[5,21,5,22],[7,1,7,3],[7,8,7,9],[7,14,7,15],[7,5,7,6],[7,11,7,12],[9,1,36,1],[9,2,9,3],[9,18,10,18],[9,19,9,22],[10,2,10,3],[10,4,10,8],[10,9,10,13],[10,14,10,17],[11,2,11,22],[12,2,12,22],[26,2,26,22],[13,2,13,3],[13,18,14,18],[14,2,14,3],[15,2,15,22],[16,2,16,3],[16,18,25,18],[17,2,17,3],[18,2,18,3],[19,2,19,3],[20,2,20,3],[21,2,21,3],[22,2,22,3],[23,2,23,3],[24,2,24,3],[25,2,25,3],[27,2,27,22],[28,2,28,3],[29,2,29,22],[30,2,30,3],[30,18,31,18],[31,2,31,3],[32,2,32,22],[33,2,33,3],[34,2,34,22],[35,2,35,3],[35,18,36,18],[36,2,36,3],[41,3,41,9],[42,4,42,9],[42,17,42,23],[38,3,38,9],[38,17,38,23],[39,4,39,9],[39,17,39,23],[40,4,40,9],[40,17,40,23]]}
[null,"CS  DESSERTS DE RESTAURANT - POLE 1"]
[null,"SUIVI DE L'EVALUATION DES COMPETENCES SUR LE CYCLE DE FORMATION "]
[null,"Session : ",null,"NOM Prénom de l'élève/apprenti :","ACADEMIE :",null,null,null,null,null,null,"Lycée/CFA :",null,null,null,null,null,null,null,"Lieux de PFMP/Entreprise de formation :",null,"Nom des Tuteurs/Maitre d'apprentissage :"]
[null,{"$f":"Administratif!$B$5","v":0},null,{"$f":"INDIRECT(Data!$A$20&\"B\"&Data!B31)","v":0},{"$f":"Administratif!B3","v":0},null,null,null,null,null,null,{"$f":"Administratif!$B$7","v":0},null,null,null,null,null,null,null,{"$f":"INDIRECT(Data!$A$20&\"D\"&Data!$B$31)","v":0},null,{"$f":"INDIRECT(Data!$A$20&\"H\"&Data!$B$31)","v":0}]
[null,null,null,null,null,null,null,null,null,null,null,null,null,null,null,null,null,null,null,{"$f":"INDIRECT(Data!$A$20&\"E\"&Data!$B$31)","v":0},null,{"$f":"INDIRECT(Data!$A$20&\"I\"&Data!$B$31)","v":0}]
[null,null,null,null,null,null,null,null,null,null,null,null,null,null,null,null,null,null,null,{"$f":"INDIRECT(Data!$A$20&\"F\"&Data!$B$31)","v":0},null,{"$f":"INDIRECT(Data!$A$20&\"J\"&Data!$B$31)","v":0}]
[]
[null,"RAPPEL CODES DES PALIERS DE PROFESSIONNALISATION A SAISIR >>",null,null,null,"P1 =  novice = Saisir 1",null,null,"P2 = exécutant = Saisir 2",null,null,"P3 = averti = Saisir 3",null,null,"P4 = expert = Saisir 4"]
[]
[null,"Pôle 1 - Production et envoi des desserts","Lieu d'évaluation Centre de formation/Entreprise :",null,null,null,null,null,null,null,null,null,null,null,null,null,null,null,null,"POSITIONNEMENT FINAL "]
[null,null,"Périodes",null,"Période 1",null,null,null,null,"Période 2",null,null,null,null,"Période 3",null,null,null,null,"Synthèse période 1","Synthèse période 2","Synthèse période 3","Décision finale"]
[null,null,"Activité Professionnelle 1 - Production des desserts dans le respect des règles d’hygiène et de sécurité"]
[null,null,"Organisation de la production"]
[null,null,"Planifier son travail "]
[null,null,"Organiser son poste de travail "]
[null,null,"Réalisation des préparations"]
[null,null,"Réaliser des pâtes et appareils"]
[null,null,"Apprêter des pâtes"]
[null,null,"Cuire des pâtes"]
[null,null,"Préparer des crèmes, mousses, ganaches et leurs dérivés"]
[null,null,"Préparer des fabrications glacées "]
[null,null,"Transformer les végétaux "]
[null,null,"Réaliser des inserts "]
[null,null,"Monter et assembler des préparations "]
[null,null,"Réaliser des éléments de finitions"]
[null,null,"Apprécier et rectifier la production"]
[null,null,"Activité Professionnelle 2 - Dressage, envoi des desserts et communication au cours du ser-vice dans le res-pect des règles d’hygiène et de sécurité"]
[null,null,"Préparation du poste d’envoi  "]
[null,null,"Configurer le poste d’envoi "]
[null,null,"Gestion des bons et des demandes des clients"]
[null,null,"Gérer les bons"]
[null,null,"Gérer les demandes spécifiques","Réceptionner et contrôler la livraison"]
[null,null,"Dressage"]
[null,null,"Dresser des desserts "]
[null,null,"Envoi et communication au cours du service"]
[null,null,"Envoyer les desserts "]
[null,null,"Transmettre et recevoir les informations nécessaires aux besoins du service"]
[]
[null,null,null,"Nom et signature des évaluateurs"]
[null,null,null,"Professeur/Formateur de spécialité :"]
[null,null,null,"Professeur/Formateur de spécialité :"]
[]
[null,null,null,"Tuteur/Maitre d'apprentissage :"]

{"sheet":"Synthèse","index":15,"n_rows":34,"n_cols":20,"rows_kept":34,"cut":false,"hidden":false,"merged":[[0,0,0,1]]}
["SYNTHESE Positionnement classe",null,"Planifier son travail ","Organiser son poste de travail ","Réaliser des pâtes et appareils","Apprêter des pâtes","Cuire des pâtes","Préparer des crèmes, mousses, ganaches et leurs dérivés","Préparer des fabrications glacées ","Transformer les végétaux ","Réaliser des inserts ","Monter et assembler des préparations ","Réaliser des éléments de finitions","Apprécier et rectifier la production","Configurer le poste d’envoi ","Gérer les bons","Gérer les demandes spécifiques","Dresser des desserts ","Envoyer les desserts ","Transmettre et recevoir les informations nécessaires aux besoins du service"]
["Élève/apprenti 1",{"$f":"INDIRECT(Data!$A$20&\"B\"&Data!B20)","v":0},{"$f":"RVLOOKUP(INDIRECT(CONCATENATE(Data!$A2,Data!C$2)))","v":"#NoMatch"},{"$f":"RVLOOKUP(INDIRECT(CONCATENATE(Data!$A2,Data!D$2)))","v":"#NoMatch"},{"$f":"RVLOOKUP(INDIRECT(CONCATENATE(Data!$A2,Data!E$2)))","v":"#NoMatch"},{"$f":"RVLOOKUP(INDIRECT(CONCATENATE(Data!$A2,Data!F$2)))","v":"#NoMatch"},{"$f":"RVLOOKUP(INDIRECT(CONCATENATE(Data!$A2,Data!G$2)))","v":"#NoMatch"},{"$f":"RVLOOKUP(INDIRECT(CONCATENATE(Data!$A2,Data!H$2)))","v":"#NoMatch"},{"$f":"RVLOOKUP(INDIRECT(CONCATENATE(Data!$A2,Data!I$2)))","v":"#NoMatch"},{"$f":"RVLOOKUP(INDIRECT(CONCATENATE(Data!$A2,Data!J$2)))","v":"#NoMatch"},{"$f":"RVLOOKUP(INDIRECT(CONCATENATE(Data!$A2,Data!K$2)))","v":"#NoMatch"},{"$f":"RVLOOKUP(INDIRECT(CONCATENATE(Data!$A2,Data!L$2)))","v":"#NoMatch"},{"$f":"RVLOOKUP(INDIRECT(CONCATENATE(Data!$A2,Data!M$2)))","v":"#NoMatch"},{"$f":"RVLOOKUP(INDIRECT(CONCATENATE(Data!$A2,Data!N$2)))","v":"#NoMatch"},{"$f":"RVLOOKUP(INDIRECT(CONCATENATE(Data!$A2,Data!O$2)))","v":"#NoMatch"},{"$f":"RVLOOKUP(INDIRECT(CONCATENATE(Data!$A2,Data!P$2)))","v":"#NoMatch"},{"$f":"RVLOOKUP(INDIRECT(CONCATENATE(Data!$A2,Data!Q$2)))","v":"#NoMatch"},{"$f":"RVLOOKUP(INDIRECT(CONCATENATE(Data!$A2,Data!R$2)))","v":"#NoMatch"},{"$f":"RVLOOKUP(INDIRECT(CONCATENATE(Data!$A2,Data!S$2)))","v":"#NoMatch"},{"$f":"RVLOOKUP(INDIRECT(CONCATENATE(Data!$A2,Data!T$2)))","v":"#NoMatch"}]
["Élève/apprenti 2",{"$f":"INDIRECT(Data!$A$20&\"B\"&Data!B21)","v":0},{"$f":"RVLOOKUP(INDIRECT(CONCATENATE(Data!$A3,Data!C$2)))","v":"#NoMatch"},{"$f":"RVLOOKUP(INDIRECT(CONCATENATE(Data!$A3,Data!D$2)))","v":"#NoMatch"},{"$f":"RVLOOKUP(INDIRECT(CONCATENATE(Data!$A3,Data!E$2)))","v":"#NoMatch"},{"$f":"RVLOOKUP(INDIRECT(CONCATENATE(Data!$A3,Data!F$2)))","v":"#NoMatch"},{"$f":"RVLOOKUP(INDIRECT(CONCATENATE(Data!$A3,Data!G$2)))","v":"#NoMatch"},{"$f":"RVLOOKUP(INDIRECT(CONCATENATE(Data!$A3,Data!H$2)))","v":"#NoMatch"},{"$f":"RVLOOKUP(INDIRECT(CONCATENATE(Data!$A3,Data!I$2)))","v":"#NoMatch"},{"$f":"RVLOOKUP(INDIRECT(CONCATENATE(Data!$A3,Data!J$2)))","v":"#NoMatch"},{"$f":"RVLOOKUP(INDIRECT(CONCATENATE(Data!$A3,Data!K$2)))","v":"#NoMatch"},{"$f":"RVLOOKUP(INDIRECT(CONCATENATE(Data!$A3,Data!L$2)))","v":"#NoMatch"},{"$f":"RVLOOKUP(INDIRECT(CONCATENATE(Data!$A3,Data!M$2)))","v":"#NoMatch"},{"$f":"RVLOOKUP(INDIRECT(CONCATENATE(Data!$A3,Data!N$2)))","v":"#NoMatch"},{"$f":"RVLOOKUP(INDIRECT(CONCATENATE(Data!$A3,Data!O$2)))","v":"#NoMatch"},{"$f":"RVLOOKUP(INDIRECT(CONCATENATE(Data!$A3,Data!P$2)))","v":"#NoMatch"},{"$f":"RVLOOKUP(INDIRECT(CONCATENATE(Data!$A3,Data!Q$2)))","v":"#NoMatch"},{"$f":"RVLOOKUP(INDIRECT(CONCATENATE(Data!$A3,Data!R$2)))","v":"#NoMatch"},{"$f":"RVLOOKUP(INDIRECT(CONCATENATE(Data!$A3,Data!S$2)))","v":"#NoMatch"},{"$f":"RVLOOKUP(INDIRECT(CONCATENATE(Data!$A3,Data!T$2)))","v":"#NoMatch"}]
["Élève/apprenti 3",{"$f":"INDIRECT(Data!$A$20&\"B\"&Data!B22)","v":0},{"$f":"RVLOOKUP(INDIRECT(CONCATENATE(Data!$A4,Data!C$2)))","v":"#NoMatch"},{"$f":"RVLOOKUP(INDIRECT(CONCATENATE(Data!$A4,Data!D$2)))","v":"#NoMatch"},{"$f":"RVLOOKUP(INDIRECT(CONCATENATE(Data!$A4,Data!E$2)))","v":"#NoMatch"},{"$f":"RVLOOKUP(INDIRECT(CONCATENATE(Data!$A4,Data!F$2)))","v":"#NoMatch"},{"$f":"RVLOOKUP(INDIRECT(CONCATENATE(Data!$A4,Data!G$2)))","v":"#NoMatch"},{"$f":"RVLOOKUP(INDIRECT(CONCATENATE(Data!$A4,Data!H$2)))","v":"#NoMatch"},{"$f":"RVLOOKUP(INDIRECT(CONCATENATE(Data!$A4,Data!I$2)))","v":"#NoMatch"},{"$f":"RVLOOKUP(INDIRECT(CONCATENATE(Data!$A4,Data!J$2)))","v":"#NoMatch"},{"$f":"RVLOOKUP(INDIRECT(CONCATENATE(Data!$A4,Data!K$2)))","v":"#NoMatch"},{"$f":"RVLOOKUP(INDIRECT(CONCATENATE(Data!$A4,Data!L$2)))","v":"#NoMatch"},{"$f":"RVLOOKUP(INDIRECT(CONCATENATE(Data!$A4,Data!M$2)))","v":"#NoMatch"},{"$f":"RVLOOKUP(INDIRECT(CONCATENATE(Data!$A4,Data!N$2)))","v":"#NoMatch"},{"$f":"RVLOOKUP(INDIRECT(CONCATENATE(Data!$A4,Data!O$2)))","v":"#NoMatch"},{"$f":"RVLOOKUP(INDIRECT(CONCATENATE(Data!$A4,Data!P$2)))","v":"#NoMatch"},{"$f":"RVLOOKUP(INDIRECT(CONCATENATE(Data!$A4,Data!Q$2)))","v":"#NoMatch"},{"$f":"RVLOOKUP(INDIRECT(CONCATENATE(Data!$A4,Data!R$2)))","v":"#NoMatch"},{"$f":"RVLOOKUP(INDIRECT(CONCATENATE(Data!$A4,Data!S$2)))","v":"#NoMatch"},{"$f":"RVLOOKUP(INDIRECT(CONCATENATE(Data!$A4,Data!T$2)))","v":"#NoMatch"}]
["Élève/apprenti 4",{"$f":"INDIRECT(Data!$A$20&\"B\"&Data!B23)","v":0},{"$f":"RVLOOKUP(INDIRECT(CONCATENATE(Data!$A5,Data!C$2)))","v":"#NoMatch"},{"$f":"RVLOOKUP(INDIRECT(CONCATENATE(Data!$A5,Data!D$2)))","v":"#NoMatch"},{"$f":"RVLOOKUP(INDIRECT(CONCATENATE(Data!$A5,Data!E$2)))","v":"#NoMatch"},{"$f":"RVLOOKUP(INDIRECT(CONCATENATE(Data!$A5,Data!F$2)))","v":"#NoMatch"},{"$f":"RVLOOKUP(INDIRECT(CONCATENATE(Data!$A5,Data!G$2)))","v":"#NoMatch"},{"$f":"RVLOOKUP(INDIRECT(CONCATENATE(Data!$A5,Data!H$2)))","v":"#NoMatch"},{"$f":"RVLOOKUP(INDIRECT(CONCATENATE(Data!$A5,Data!I$2)))","v":"#NoMatch"},{"$f":"RVLOOKUP(INDIRECT(CONCATENATE(Data!$A5,Data!J$2)))","v":"#NoMatch"},{"$f":"RVLOOKUP(INDIRECT(CONCATENATE(Data!$A5,Data!K$2)))","v":"#NoMatch"},{"$f":"RVLOOKUP(INDIRECT(CONCATENATE(Data!$A5,Data!L$2)))","v":"#NoMatch"},{"$f":"RVLOOKUP(INDIRECT(CONCATENATE(Data!$A5,Data!M$2)))","v":"#NoMatch"},{"$f":"RVLOOKUP(INDIRECT(CONCATENATE(Data!$A5,Data!N$2)))","v":"#NoMatch"},{"$f":"RVLOOKUP(INDIRECT(CONCATENATE(Data!$A5,Data!O$2)))","v":"#NoMatch"},{"$f":"RVLOOKUP(INDIRECT(CONCATENATE(Data!$A5,Data!P$2)))","v":"#NoMatch"},{"$f":"RVLOOKUP(INDIRECT(CONCATENATE(Data!$A5,Data!Q$2)))","v":"#NoMatch"},{"$f":"RVLOOKUP(INDIRECT(CONCATENATE(Data!$A5,Data!R$2)))","v":"#NoMatch"},{"$f":"RVLOOKUP(INDIRECT(CONCATENATE(Data!$A5,Data!S$2)))","v":"#NoMatch"},{"$f":"RVLOOKUP(INDIRECT(CONCATENATE(Data!$A5,Data!T$2)))","v":"#NoMatch"}]
["Élève/apprenti 5",{"$f":"INDIRECT(Data!$A$20&\"B\"&Data!B24)","v":0},{"$f":"RVLOOKUP(INDIRECT(CONCATENATE(Data!$A6,Data!C$2)))","v":"#NoMatch"},{"$f":"RVLOOKUP(INDIRECT(CONCATENATE(Data!$A6,Data!D$2)))","v":"#NoMatch"},{"$f":"RVLOOKUP(INDIRECT(CONCATENATE(Data!$A6,Data!E$2)))","v":"#NoMatch"},{"$f":"RVLOOKUP(INDIRECT(CONCATENATE(Data!$A6,Data!F$2)))","v":"#NoMatch"},{"$f":"RVLOOKUP(INDIRECT(CONCATENATE(Data!$A6,Data!G$2)))","v":"#NoMatch"},{"$f":"RVLOOKUP(INDIRECT(CONCATENATE(Data!$A6,Data!H$2)))","v":"#NoMatch"},{"$f":"RVLOOKUP(INDIRECT(CONCATENATE(Data!$A6,Data!I$2)))","v":"#NoMatch"},{"$f":"RVLOOKUP(INDIRECT(CONCATENATE(Data!$A6,Data!J$2)))","v":"#NoMatch"},{"$f":"RVLOOKUP(INDIRECT(CONCATENATE(Data!$A6,Data!K$2)))","v":"#NoMatch"},{"$f":"RVLOOKUP(INDIRECT(CONCATENATE(Data!$A6,Data!L$2)))","v":"#NoMatch"},{"$f":"RVLOOKUP(INDIRECT(CONCATENATE(Data!$A6,Data!M$2)))","v":"#NoMatch"},{"$f":"RVLOOKUP(INDIRECT(CONCATENATE(Data!$A6,Data!N$2)))","v":"#NoMatch"},{"$f":"RVLOOKUP(INDIRECT(CONCATENATE(Data!$A6,Data!O$2)))","v":"#NoMatch"},{"$f":"RVLOOKUP(INDIRECT(CONCATENATE(Data!$A6,Data!P$2)))","v":"#NoMatch"},{"$f":"RVLOOKUP(INDIRECT(CONCATENATE(Data!$A6,Data!Q$2)))","v":"#NoMatch"},{"$f":"RVLOOKUP(INDIRECT(CONCATENATE(Data!$A6,Data!R$2)))","v":"#NoMatch"},{"$f":"RVLOOKUP(INDIRECT(CONCATENATE(Data!$A6,Data!S$2)))","v":"#NoMatch"},{"$f":"RVLOOKUP(INDIRECT(CONCATENATE(Data!$A6,Data!T$2)))","v":"#NoMatch"}]
["Élève/apprenti 6",{"$f":"INDIRECT(Data!$A$20&\"B\"&Data!B25)","v":0},{"$f":"RVLOOKUP(INDIRECT(CONCATENATE(Data!$A7,Data!C$2)))","v":"#NoMatch"},{"$f":"RVLOOKUP(INDIRECT(CONCATENATE(Data!$A7,Data!D$2)))","v":"#NoMatch"},{"$f":"RVLOOKUP(INDIRECT(CONCATENATE(Data!$A7,Data!E$2)))","v":"#NoMatch"},{"$f":"RVLOOKUP(INDIRECT(CONCATENATE(Data!$A7,Data!F$2)))","v":"#NoMatch"},{"$f":"RVLOOKUP(INDIRECT(CONCATENATE(Data!$A7,Data!G$2)))","v":"#NoMatch"},{"$f":"RVLOOKUP(INDIRECT(CONCATENATE(Data!$A7,Data!H$2)))","v":"#NoMatch"},{"$f":"RVLOOKUP(INDIRECT(CONCATENATE(Data!$A7,Data!I$2)))","v":"#NoMatch"},{"$f":"RVLOOKUP(INDIRECT(CONCATENATE(Data!$A7,Data!J$2)))","v":"#NoMatch"},{"$f":"RVLOOKUP(INDIRECT(CONCATENATE(Data!$A7,Data!K$2)))","v":"#NoMatch"},{"$f":"RVLOOKUP(INDIRECT(CONCATENATE(Data!$A7,Data!L$2)))","v":"#NoMatch"},{"$f":"RVLOOKUP(INDIRECT(CONCATENATE(Data!$A7,Data!M$2)))","v":"#NoMatch"},{"$f":"RVLOOKUP(INDIRECT(CONCATENATE(Data!$A7,Data!N$2)))","v":"#NoMatch"},{"$f":"RVLOOKUP(INDIRECT(CONCATENATE(Data!$A7,Data!O$2)))","v":"#NoMatch"},{"$f":"RVLOOKUP(INDIRECT(CONCATENATE(Data!$A7,Data!P$2)))","v":"#NoMatch"},{"$f":"RVLOOKUP(INDIRECT(CONCATENATE(Data!$A7,Data!Q$2)))","v":"#NoMatch"},{"$f":"RVLOOKUP(INDIRECT(CONCATENATE(Data!$A7,Data!R$2)))","v":"#NoMatch"},{"$f":"RVLOOKUP(INDIRECT(CONCATENATE(Data!$A7,Data!S$2)))","v":"#NoMatch"},{"$f":"RVLOOKUP(INDIRECT(CONCATENATE(Data!$A7,Data!T$2)))","v":"#NoMatch"}]
["Élève/apprenti 7",{"$f":"INDIRECT(Data!$A$20&\"B\"&Data!B26)","v":0},{"$f":"RVLOOKUP(INDIRECT(CONCATENATE(Data!$A8,Data!C$2)))","v":"#NoMatch"},{"$f":"RVLOOKUP(INDIRECT(CONCATENATE(Data!$A8,Data!D$2)))","v":"#NoMatch"},{"$f":"RVLOOKUP(INDIRECT(CONCATENATE(Data!$A8,Data!E$2)))","v":"#NoMatch"},{"$f":"RVLOOKUP(INDIRECT(CONCATENATE(Data!$A8,Data!F$2)))","v":"#NoMatch"},{"$f":"RVLOOKUP(INDIRECT(CONCATENATE(Data!$A8,Data!G$2)))","v":"#NoMatch"},{"$f":"RVLOOKUP(INDIRECT(CONCATENATE(Data!$A8,Data!H$2)))","v":"#NoMatch"},{"$f":"RVLOOKUP(INDIRECT(CONCATENATE(Data!$A8,Data!I$2)))","v":"#NoMatch"},{"$f":"RVLOOKUP(INDIRECT(CONCATENATE(Data!$A8,Data!J$2)))","v":"#NoMatch"},{"$f":"RVLOOKUP(INDIRECT(CONCATENATE(Data!$A8,Data!K$2)))","v":"#NoMatch"},{"$f":"RVLOOKUP(INDIRECT(CONCATENATE(Data!$A8,Data!L$2)))","v":"#NoMatch"},{"$f":"RVLOOKUP(INDIRECT(CONCATENATE(Data!$A8,Data!M$2)))","v":"#NoMatch"},{"$f":"RVLOOKUP(INDIRECT(CONCATENATE(Data!$A8,Data!N$2)))","v":"#NoMatch"},{"$f":"RVLOOKUP(INDIRECT(CONCATENATE(Data!$A8,Data!O$2)))","v":"#NoMatch"},{"$f":"RVLOOKUP(INDIRECT(CONCATENATE(Data!$A8,Data!P$2)))","v":"#NoMatch"},{"$f":"RVLOOKUP(INDIRECT(CONCATENATE(Data!$A8,Data!Q$2)))","v":"#NoMatch"},{"$f":"RVLOOKUP(INDIRECT(CONCATENATE(Data!$A8,Data!R$2)))","v":"#NoMatch"},{"$f":"RVLOOKUP(INDIRECT(CONCATENATE(Data!$A8,Data!S$2)))","v":"#NoMatch"},{"$f":"RVLOOKUP(INDIRECT(CONCATENATE(Data!$A8,Data!T$2)))","v":"#NoMatch"}]
["Élève/apprenti 8",{"$f":"INDIRECT(Data!$A$20&\"B\"&Data!B27)","v":0},{"$f":"RVLOOKUP(INDIRECT(CONCATENATE(Data!$A9,Data!C$2)))","v":"#NoMatch"},{"$f":"RVLOOKUP(INDIRECT(CONCATENATE(Data!$A9,Data!D$2)))","v":"#NoMatch"},{"$f":"RVLOOKUP(INDIRECT(CONCATENATE(Data!$A9,Data!E$2)))","v":"#NoMatch"},{"$f":"RVLOOKUP(INDIRECT(CONCATENATE(Data!$A9,Data!F$2)))","v":"#NoMatch"},{"$f":"RVLOOKUP(INDIRECT(CONCATENATE(Data!$A9,Data!G$2)))","v":"#NoMatch"},{"$f":"RVLOOKUP(INDIRECT(CONCATENATE(Data!$A9,Data!H$2)))","v":"#NoMatch"},{"$f":"RVLOOKUP(INDIRECT(CONCATENATE(Data!$A9,Data!I$2)))","v":"#NoMatch"},{"$f":"RVLOOKUP(INDIRECT(CONCATENATE(Data!$A9,Data!J$2)))","v":"#NoMatch"},{"$f":"RVLOOKUP(INDIRECT(CONCATENATE(Data!$A9,Data!K$2)))","v":"#NoMatch"},{"$f":"RVLOOKUP(INDIRECT(CONCATENATE(Data!$A9,Data!L$2)))","v":"#NoMatch"},{"$f":"RVLOOKUP(INDIRECT(CONCATENATE(Data!$A9,Data!M$2)))","v":"#NoMatch"},{"$f":"RVLOOKUP(INDIRECT(CONCATENATE(Data!$A9,Data!N$2)))","v":"#NoMatch"},{"$f":"RVLOOKUP(INDIRECT(CONCATENATE(Data!$A9,Data!O$2)))","v":"#NoMatch"},{"$f":"RVLOOKUP(INDIRECT(CONCATENATE(Data!$A9,Data!P$2)))","v":"#NoMatch"},{"$f":"RVLOOKUP(INDIRECT(CONCATENATE(Data!$A9,Data!Q$2)))","v":"#NoMatch"},{"$f":"RVLOOKUP(INDIRECT(CONCATENATE(Data!$A9,Data!R$2)))","v":"#NoMatch"},{"$f":"RVLOOKUP(INDIRECT(CONCATENATE(Data!$A9,Data!S$2)))","v":"#NoMatch"},{"$f":"RVLOOKUP(INDIRECT(CONCATENATE(Data!$A9,Data!T$2)))","v":"#NoMatch"}]
["Élève/apprenti 9",{"$f":"INDIRECT(Data!$A$20&\"B\"&Data!B28)","v":0},{"$f":"RVLOOKUP(INDIRECT(CONCATENATE(Data!$A10,Data!C$2)))","v":"#NoMatch"},{"$f":"RVLOOKUP(INDIRECT(CONCATENATE(Data!$A10,Data!D$2)))","v":"#NoMatch"},{"$f":"RVLOOKUP(INDIRECT(CONCATENATE(Data!$A10,Data!E$2)))","v":"#NoMatch"},{"$f":"RVLOOKUP(INDIRECT(CONCATENATE(Data!$A10,Data!F$2)))","v":"#NoMatch"},{"$f":"RVLOOKUP(INDIRECT(CONCATENATE(Data!$A10,Data!G$2)))","v":"#NoMatch"},{"$f":"RVLOOKUP(INDIRECT(CONCATENATE(Data!$A10,Data!H$2)))","v":"#NoMatch"},{"$f":"RVLOOKUP(INDIRECT(CONCATENATE(Data!$A10,Data!I$2)))","v":"#NoMatch"},{"$f":"RVLOOKUP(INDIRECT(CONCATENATE(Data!$A10,Data!J$2)))","v":"#NoMatch"},{"$f":"RVLOOKUP(INDIRECT(CONCATENATE(Data!$A10,Data!K$2)))","v":"#NoMatch"},{"$f":"RVLOOKUP(INDIRECT(CONCATENATE(Data!$A10,Data!L$2)))","v":"#NoMatch"},{"$f":"RVLOOKUP(INDIRECT(CONCATENATE(Data!$A10,Data!M$2)))","v":"#NoMatch"},{"$f":"RVLOOKUP(INDIRECT(CONCATENATE(Data!$A10,Data!N$2)))","v":"#NoMatch"},{"$f":"RVLOOKUP(INDIRECT(CONCATENATE(Data!$A10,Data!O$2)))","v":"#NoMatch"},{"$f":"RVLOOKUP(INDIRECT(CONCATENATE(Data!$A10,Data!P$2)))","v":"#NoMatch"},{"$f":"RVLOOKUP(INDIRECT(CONCATENATE(Data!$A10,Data!Q$2)))","v":"#NoMatch"},{"$f":"RVLOOKUP(INDIRECT(CONCATENATE(Data!$A10,Data!R$2)))","v":"#NoMatch"},{"$f":"RVLOOKUP(INDIRECT(CONCATENATE(Data!$A10,Data!S$2)))","v":"#NoMatch"},{"$f":"RVLOOKUP(INDIRECT(CONCATENATE(Data!$A10,Data!T$2)))","v":"#NoMatch"}]
["Élève/apprenti 10",{"$f":"INDIRECT(Data!$A$20&\"B\"&Data!B29)","v":0},{"$f":"RVLOOKUP(INDIRECT(CONCATENATE(Data!$A11,Data!C$2)))","v":"#NoMatch"},{"$f":"RVLOOKUP(INDIRECT(CONCATENATE(Data!$A11,Data!D$2)))","v":"#NoMatch"},{"$f":"RVLOOKUP(INDIRECT(CONCATENATE(Data!$A11,Data!E$2)))","v":"#NoMatch"},{"$f":"RVLOOKUP(INDIRECT(CONCATENATE(Data!$A11,Data!F$2)))","v":"#NoMatch"},{"$f":"RVLOOKUP(INDIRECT(CONCATENATE(Data!$A11,Data!G$2)))","v":"#NoMatch"},{"$f":"RVLOOKUP(INDIRECT(CONCATENATE(Data!$A11,Data!H$2)))","v":"#NoMatch"},{"$f":"RVLOOKUP(INDIRECT(CONCATENATE(Data!$A11,Data!I$2)))","v":"#NoMatch"},{"$f":"RVLOOKUP(INDIRECT(CONCATENATE(Data!$A11,Data!J$2)))","v":"#NoMatch"},{"$f":"RVLOOKUP(INDIRECT(CONCATENATE(Data!$A11,Data!K$2)))","v":"#NoMatch"},{"$f":"RVLOOKUP(INDIRECT(CONCATENATE(Data!$A11,Data!L$2)))","v":"#NoMatch"},{"$f":"RVLOOKUP(INDIRECT(CONCATENATE(Data!$A11,Data!M$2)))","v":"#NoMatch"},{"$f":"RVLOOKUP(INDIRECT(CONCATENATE(Data!$A11,Data!N$2)))","v":"#NoMatch"},{"$f":"RVLOOKUP(INDIRECT(CONCATENATE(Data!$A11,Data!O$2)))","v":"#NoMatch"},{"$f":"RVLOOKUP(INDIRECT(CONCATENATE(Data!$A11,Data!P$2)))","v":"#NoMatch"},{"$f":"RVLOOKUP(INDIRECT(CONCATENATE(Data!$A11,Data!Q$2)))","v":"#NoMatch"},{"$f":"RVLOOKUP(INDIRECT(CONCATENATE(Data!$A11,Data!R$2)))","v":"#NoMatch"},{"$f":"RVLOOKUP(INDIRECT(CONCATENATE(Data!$A11,Data!S$2)))","v":"#NoMatch"},{"$f":"RVLOOKUP(INDIRECT(CONCATENATE(Data!$A11,Data!T$2)))","v":"#NoMatch"}]
["Élève/apprenti 11",{"$f":"INDIRECT(Data!$A$20&\"B\"&Data!B30)","v":0},{"$f":"RVLOOKUP(INDIRECT(CONCATENATE(Data!$A12,Data!C$2)))","v":"#NoMatch"},{"$f":"RVLOOKUP(INDIRECT(CONCATENATE(Data!$A12,Data!D$2)))","v":"#NoMatch"},{"$f":"RVLOOKUP(INDIRECT(CONCATENATE(Data!$A12,Data!E$2)))","v":"#NoMatch"},{"$f":"RVLOOKUP(INDIRECT(CONCATENATE(Data!$A12,Data!F$2)))","v":"#NoMatch"},{"$f":"RVLOOKUP(INDIRECT(CONCATENATE(Data!$A12,Data!G$2)))","v":"#NoMatch"},{"$f":"RVLOOKUP(INDIRECT(CONCATENATE(Data!$A12,Data!H$2)))","v":"#NoMatch"},{"$f":"RVLOOKUP(INDIRECT(CONCATENATE(Data!$A12,Data!I$2)))","v":"#NoMatch"},{"$f":"RVLOOKUP(INDIRECT(CONCATENATE(Data!$A12,Data!J$2)))","v":"#NoMatch"},{"$f":"RVLOOKUP(INDIRECT(CONCATENATE(Data!$A12,Data!K$2)))","v":"#NoMatch"},{"$f":"RVLOOKUP(INDIRECT(CONCATENATE(Data!$A12,Data!L$2)))","v":"#NoMatch"},{"$f":"RVLOOKUP(INDIRECT(CONCATENATE(Data!$A12,Data!M$2)))","v":"#NoMatch"},{"$f":"RVLOOKUP(INDIRECT(CONCATENATE(Data!$A12,Data!N$2)))","v":"#NoMatch"},{"$f":"RVLOOKUP(INDIRECT(CONCATENATE(Data!$A12,Data!O$2)))","v":"#NoMatch"},{"$f":"RVLOOKUP(INDIRECT(CONCATENATE(Data!$A12,Data!P$2)))","v":"#NoMatch"},{"$f":"RVLOOKUP(INDIRECT(CONCATENATE(Data!$A12,Data!Q$2)))","v":"#NoMatch"},{"$f":"RVLOOKUP(INDIRECT(CONCATENATE(Data!$A12,Data!R$2)))","v":"#NoMatch"},{"$f":"RVLOOKUP(INDIRECT(CONCATENATE(Data!$A12,Data!S$2)))","v":"#NoMatch"},{"$f":"RVLOOKUP(INDIRECT(CONCATENATE(Data!$A12,Data!T$2)))","v":"#NoMatch"}]
["Élève/apprenti 12",{"$f":"INDIRECT(Data!$A$20&\"B\"&Data!B31)","v":0},{"$f":"RVLOOKUP(INDIRECT(CONCATENATE(Data!$A13,Data!C$2)))","v":"#NoMatch"},{"$f":"RVLOOKUP(INDIRECT(CONCATENATE(Data!$A13,Data!D$2)))","v":"#NoMatch"},{"$f":"RVLOOKUP(INDIRECT(CONCATENATE(Data!$A13,Data!E$2)))","v":"#NoMatch"},{"$f":"RVLOOKUP(INDIRECT(CONCATENATE(Data!$A13,Data!F$2)))","v":"#NoMatch"},{"$f":"RVLOOKUP(INDIRECT(CONCATENATE(Data!$A13,Data!G$2)))","v":"#NoMatch"},{"$f":"RVLOOKUP(INDIRECT(CONCATENATE(Data!$A13,Data!H$2)))","v":"#NoMatch"},{"$f":"RVLOOKUP(INDIRECT(CONCATENATE(Data!$A13,Data!I$2)))","v":"#NoMatch"},{"$f":"RVLOOKUP(INDIRECT(CONCATENATE(Data!$A13,Data!J$2)))","v":"#NoMatch"},{"$f":"RVLOOKUP(INDIRECT(CONCATENATE(Data!$A13,Data!K$2)))","v":"#NoMatch"},{"$f":"RVLOOKUP(INDIRECT(CONCATENATE(Data!$A13,Data!L$2)))","v":"#NoMatch"},{"$f":"RVLOOKUP(INDIRECT(CONCATENATE(Data!$A13,Data!M$2)))","v":"#NoMatch"},{"$f":"RVLOOKUP(INDIRECT(CONCATENATE(Data!$A13,Data!N$2)))","v":"#NoMatch"},{"$f":"RVLOOKUP(INDIRECT(CONCATENATE(Data!$A13,Data!O$2)))","v":"#NoMatch"},{"$f":"RVLOOKUP(INDIRECT(CONCATENATE(Data!$A13,Data!P$2)))","v":"#NoMatch"},{"$f":"RVLOOKUP(INDIRECT(CONCATENATE(Data!$A13,Data!Q$2)))","v":"#NoMatch"},{"$f":"RVLOOKUP(INDIRECT(CONCATENATE(Data!$A13,Data!R$2)))","v":"#NoMatch"},{"$f":"RVLOOKUP(INDIRECT(CONCATENATE(Data!$A13,Data!S$2)))","v":"#NoMatch"},{"$f":"RVLOOKUP(INDIRECT(CONCATENATE(Data!$A13,Data!T$2)))","v":"#NoMatch"}]
[]
[]
[null,"nom et prénom",{"$f":"$B2","v":0},{"$f":"$B3","v":0},{"$f":"$B4","v":0},{"$f":"$B5","v":0},{"$f":"$B6","v":0},{"$f":"$B7","v":0},{"$f":"$B8","v":0},{"$f":"$B9","v":0},{"$f":"$B10","v":0},{"$f":"$B11","v":0},{"$f":"$B12","v":0},{"$f":"$B13","v":0}]
[null,"Planifier son travail ",{"$f":"MID(Synthèse!$C$2,2,1)","v":"N"},{"$f":"MID(Synthèse!$C$3,2,1)","v":"N"},{"$f":"MID(Synthèse!$C$4,2,1)","v":"N"},{"$f":"MID(Synthèse!$C$5,2,1)","v":"N"},{"$f":"MID(Synthèse!$C$6,2,1)","v":"N"},{"$f":"MID(Synthèse!$C$7,2,1)","v":"N"},{"$f":"MID(Synthèse!$C$8,2,1)","v":"N"},{"$f":"MID(Synthèse!$C$9,2,1)","v":"N"},{"$f":"MID(Synthèse!$C$10,2,1)","v":"N"},{"$f":"MID(Synthèse!$C$11,2,1)","v":"N"},{"$f":"MID(Synthèse!$C$12,2,1)","v":"N"},{"$f":"MID(Synthèse!$C$13,2,1)","v":"N"}]
[null,"Organiser son poste de travail ",{"$f":"MID(Synthèse!$D$2,2,1)","v":"N"},{"$f":"MID(Synthèse!$D$3,2,1)","v":"N"},{"$f":"MID(Synthèse!$D$4,2,1)","v":"N"},{"$f":"MID(Synthèse!$D$5,2,1)","v":"N"},{"$f":"MID(Synthèse!$D$6,2,1)","v":"N"},{"$f":"MID(Synthèse!$D$7,2,1)","v":"N"},{"$f":"MID(Synthèse!$D$8,2,1)","v":"N"},{"$f":"MID(Synthèse!$D$9,2,1)","v":"N"},{"$f":"MID(Synthèse!$D$10,2,1)","v":"N"},{"$f":"MID(Synthèse!$D$11,2,1)","v":"N"},{"$f":"MID(Synthèse!$D$12,2,1)","v":"N"},{"$f":"MID(Synthèse!$D$13,2,1)","v":"N"}]
[null,"Réaliser des pâtes et appareils",{"$f":"MID(Synthèse!$E$2,2,1)","v":"N"},{"$f":"MID(Synthèse!$E$3,2,1)","v":"N"},{"$f":"MID(Synthèse!$E$4,2,1)","v":"N"},{"$f":"MID(Synthèse!$E$5,2,1)","v":"N"},{"$f":"MID(Synthèse!$E$6,2,1)","v":"N"},{"$f":"MID(Synthèse!$E$7,2,1)","v":"N"},{"$f":"MID(Synthèse!$E$8,2,1)","v":"N"},{"$f":"MID(Synthèse!$E$9,2,1)","v":"N"},{"$f":"MID(Synthèse!$E$10,2,1)","v":"N"},{"$f":"MID(Synthèse!$E$11,2,1)","v":"N"},{"$f":"MID(Synthèse!$E$12,2,1)","v":"N"},{"$f":"MID(Synthèse!$E$13,2,1)","v":"N"}]
[null,"Apprêter des pâtes",{"$f":"MID(Synthèse!$F$2,2,1)","v":"N"},{"$f":"MID(Synthèse!$F$3,2,1)","v":"N"},{"$f":"MID(Synthèse!$F$4,2,1)","v":"N"},{"$f":"MID(Synthèse!$F$5,2,1)","v":"N"},{"$f":"MID(Synthèse!$F$6,2,1)","v":"N"},{"$f":"MID(Synthèse!$F$7,2,1)","v":"N"},{"$f":"MID(Synthèse!$F$8,2,1)","v":"N"},{"$f":"MID(Synthèse!$F$9,2,1)","v":"N"},{"$f":"MID(Synthèse!$F$10,2,1)","v":"N"},{"$f":"MID(Synthèse!$F$11,2,1)","v":"N"},{"$f":"MID(Synthèse!$F$12,2,1)","v":"N"},{"$f":"MID(Synthèse!$F$13,2,1)","v":"N"}]
[null,"Cuire des pâtes",{"$f":"MID(Synthèse!$G$2,2,1)","v":"N"},{"$f":"MID(Synthèse!$G$3,2,1)","v":"N"},{"$f":"MID(Synthèse!$G$4,2,1)","v":"N"},{"$f":"MID(Synthèse!$G$5,2,1)","v":"N"},{"$f":"MID(Synthèse!$G$6,2,1)","v":"N"},{"$f":"MID(Synthèse!$G$7,2,1)","v":"N"},{"$f":"MID(Synthèse!$G$8,2,1)","v":"N"},{"$f":"MID(Synthèse!$G$9,2,1)","v":"N"},{"$f":"MID(Synthèse!$G$10,2,1)","v":"N"},{"$f":"MID(Synthèse!$G$11,2,1)","v":"N"},{"$f":"MID(Synthèse!$G$12,2,1)","v":"N"},{"$f":"MID(Synthèse!$G$13,2,1)","v":"N"}]
[null,"Préparer des crèmes, mousses, ganaches et leurs dérivés",{"$f":"MID(Synthèse!$H$2,2,1)","v":"N"},{"$f":"MID(Synthèse!$H$3,2,1)","v":"N"},{"$f":"MID(Synthèse!$H$4,2,1)","v":"N"},{"$f":"MID(Synthèse!$H$5,2,1)","v":"N"},{"$f":"MID(Synthèse!$H$6,2,1)","v":"N"},{"$f":"MID(Synthèse!$H$7,2,1)","v":"N"},{"$f":"MID(Synthèse!$H$8,2,1)","v":"N"},{"$f":"MID(Synthèse!$H$9,2,1)","v":"N"},{"$f":"MID(Synthèse!$H$10,2,1)","v":"N"},{"$f":"MID(Synthèse!$H$11,2,1)","v":"N"},{"$f":"MID(Synthèse!$H$12,2,1)","v":"N"},{"$f":"MID(Synthèse!$H$13,2,1)","v":"N"}]
[null,"Préparer des fabrications glacées ",{"$f":"MID(Synthèse!$I$2,2,1)","v":"N"},{"$f":"MID(Synthèse!$I$3,2,1)","v":"N"},{"$f":"MID(Synthèse!$I$4,2,1)","v":"N"},{"$f":"MID(Synthèse!$I$5,2,1)","v":"N"},{"$f":"MID(Synthèse!$I$6,2,1)","v":"N"},{"$f":"MID(Synthèse!$I$7,2,1)","v":"N"},{"$f":"MID(Synthèse!$I$8,2,1)","v":"N"},{"$f":"MID(Synthèse!$I$9,2,1)","v":"N"},{"$f":"MID(Synthèse!$I$10,2,1)","v":"N"},{"$f":"MID(Synthèse!$I$11,2,1)","v":"N"},{"$f":"MID(Synthèse!$I$12,2,1)","v":"N"},{"$f":"MID(Synthèse!$I$13,2,1)","v":"N"}]
[null,"Transformer les végétaux ",{"$f":"MID(Synthèse!$J$2,2,1)","v":"N"},{"$f":"MID(Synthèse!$J$3,2,1)","v":"N"},{"$f":"MID(Synthèse!$J$4,2,1)","v":"N"},{"$f":"MID(Synthèse!$J$5,2,1)","v":"N"},{"$f":"MID(Synthèse!$J$6,2,1)","v":"N"},{"$f":"MID(Synthèse!$J$7,2,1)","v":"N"},{"$f":"MID(Synthèse!$J$8,2,1)","v":"N"},{"$f":"MID(Synthèse!$J$9,2,1)","v":"N"},{"$f":"MID(Synthèse!$J$10,2,1)","v":"N"},{"$f":"MID(Synthèse!$J$11,2,1)","v":"N"},{"$f":"MID(Synthèse!$J$12,2,1)","v":"N"},{"$f":"MID(Synthèse!$J$13,2,1)","v":"N"}]
[null,"Réaliser des inserts ",{"$f":"MID(Synthèse!$K$2,2,1)","v":"N"},{"$f":"MID(Synthèse!$K$3,2,1)","v":"N"},{"$f":"MID(Synthèse!$K$4,2,1)","v":"N"},{"$f":"MID(Synthèse!$K$5,2,1)","v":"N"},{"$f":"MID(Synthèse!$K$6,2,1)","v":"N"},{"$f":"MID(Synthèse!$K$7,2,1)","v":"N"},{"$f":"MID(Synthèse!$K$8,2,1)","v":"N"},{"$f":"MID(Synthèse!$K$9,2,1)","v":"N"},{"$f":"MID(Synthèse!$K$10,2,1)","v":"N"},{"$f":"MID(Synthèse!$K$11,2,1)","v":"N"},{"$f":"MID(Synthèse!$K$12,2,1)","v":"N"},{"$f":"MID(Synthèse!$K$13,2,1)","v":"N"}]
[null,"Monter et assembler des préparations ",{"$f":"MID(Synthèse!$L$2,2,1)","v":"N"},{"$f":"MID(Synthèse!$L$3,2,1)","v":"N"},{"$f":"MID(Synthèse!$L$4,2,1)","v":"N"},{"$f":"MID(Synthèse!$L$5,2,1)","v":"N"},{"$f":"MID(Synthèse!$L$6,2,1)","v":"N"},{"$f":"MID(Synthèse!$L$7,2,1)","v":"N"},{"$f":"MID(Synthèse!$L$8,2,1)","v":"N"},{"$f":"MID(Synthèse!$L$9,2,1)","v":"N"},{"$f":"MID(Synthèse!$L$10,2,1)","v":"N"},{"$f":"MID(Synthèse!$L$11,2,1)","v":"N"},{"$f":"MID(Synthèse!$L$12,2,1)","v":"N"},{"$f":"MID(Synthèse!$L$13,2,1)","v":"N"}]
[null,"Réaliser des éléments de finitions",{"$f":"MID(Synthèse!$M$2,2,1)","v":"N"},{"$f":"MID(Synthèse!$M$3,2,1)","v":"N"},{"$f":"MID(Synthèse!$M$4,2,1)","v":"N"},{"$f":"MID(Synthèse!$M$5,2,1)","v":"N"},{"$f":"MID(Synthèse!$M$6,2,1)","v":"N"},{"$f":"MID(Synthèse!$M$7,2,1)","v":"N"},{"$f":"MID(Synthèse!$M$8,2,1)","v":"N"},{"$f":"MID(Synthèse!$M$9,2,1)","v":"N"},{"$f":"MID(Synthèse!$M$10,2,1)","v":"N"},{"$f":"MID(Synthèse!$M$11,2,1)","v":"N"},{"$f":"MID(Synthèse!$M$12,2,1)","v":"N"},{"$f":"MID(Synthèse!$M$13,2,1)","v":"N"}]
[null,"Apprécier et rectifier la production",{"$f":"MID(Synthèse!$N$2,2,1)","v":"N"},{"$f":"MID(Synthèse!$N$3,2,1)","v":"N"},{"$f":"MID(Synthèse!$N$4,2,1)","v":"N"},{"$f":"MID(Synthèse!$N$5,2,1)","v":"N"},{"$f":"MID(Synthèse!$N$6,2,1)","v":"N"},{"$f":"MID(Synthèse!$N$7,2,1)","v":"N"},{"$f":"MID(Synthèse!$N$8,2,1)","v":"N"},{"$f":"MID(Synthèse!$N$9,2,1)","v":"N"},{"$f":"MID(Synthèse!$N$10,2,1)","v":"N"},{"$f":"MID(Synthèse!$N$11,2,1)","v":"N"},{"$f":"MID(Synthèse!$N$12,2,1)","v":"N"},{"$f":"MID(Synthèse!$N$13,2,1)","v":"N"}]
[null,"Configurer le poste d’envoi ",{"$f":"MID(Synthèse!$O$2,2,1)","v":"N"},{"$f":"MID(Synthèse!$O$3,2,1)","v":"N"},{"$f":"MID(Synthèse!$O$4,2,1)","v":"N"},{"$f":"MID(Synthèse!$O$5,2,1)","v":"N"},{"$f":"MID(Synthèse!$O$6,2,1)","v":"N"},{"$f":"MID(Synthèse!$O$7,2,1)","v":"N"},{"$f":"MID(Synthèse!$O$8,2,1)","v":"N"},{"$f":"MID(Synthèse!$O$9,2,1)","v":"N"},{"$f":"MID(Synthèse!$O$10,2,1)","v":"N"},{"$f":"MID(Synthèse!$O$11,2,1)","v":"N"},{"$f":"MID(Synthèse!$O$12,2,1)","v":"N"},{"$f":"MID(Synthèse!$O$13,2,1)","v":"N"}]
[null,"Gérer les bons",{"$f":"MID(Synthèse!$P$2,2,1)","v":"N"},{"$f":"MID(Synthèse!$P$3,2,1)","v":"N"},{"$f":"MID(Synthèse!$P$4,2,1)","v":"N"},{"$f":"MID(Synthèse!$P$5,2,1)","v":"N"},{"$f":"MID(Synthèse!$P$6,2,1)","v":"N"},{"$f":"MID(Synthèse!$P$7,2,1)","v":"N"},{"$f":"MID(Synthèse!$P$8,2,1)","v":"N"},{"$f":"MID(Synthèse!$P$9,2,1)","v":"N"},{"$f":"MID(Synthèse!$P$10,2,1)","v":"N"},{"$f":"MID(Synthèse!$P$11,2,1)","v":"N"},{"$f":"MID(Synthèse!$P$12,2,1)","v":"N"},{"$f":"MID(Synthèse!$P$13,2,1)","v":"N"}]
[null,"Gérer les demandes spécifiques",{"$f":"MID(Synthèse!$Q$2,2,1)","v":"N"},{"$f":"MID(Synthèse!$Q$3,2,1)","v":"N"},{"$f":"MID(Synthèse!$Q$4,2,1)","v":"N"},{"$f":"MID(Synthèse!$Q$5,2,1)","v":"N"},{"$f":"MID(Synthèse!$Q$6,2,1)","v":"N"},{"$f":"MID(Synthèse!$Q$7,2,1)","v":"N"},{"$f":"MID(Synthèse!$Q$8,2,1)","v":"N"},{"$f":"MID(Synthèse!$Q$9,2,1)","v":"N"},{"$f":"MID(Synthèse!$Q$10,2,1)","v":"N"},{"$f":"MID(Synthèse!$Q$11,2,1)","v":"N"},{"$f":"MID(Synthèse!$Q$12,2,1)","v":"N"},{"$f":"MID(Synthèse!$Q$13,2,1)","v":"N"}]
[null,"Dresser des desserts ",{"$f":"MID(Synthèse!$R$2,2,1)","v":"N"},{"$f":"MID(Synthèse!$R$3,2,1)","v":"N"},{"$f":"MID(Synthèse!$R$4,2,1)","v":"N"},{"$f":"MID(Synthèse!$R$5,2,1)","v":"N"},{"$f":"MID(Synthèse!$R$6,2,1)","v":"N"},{"$f":"MID(Synthèse!$R$7,2,1)","v":"N"},{"$f":"MID(Synthèse!$R$8,2,1)","v":"N"},{"$f":"MID(Synthèse!$R$9,2,1)","v":"N"},{"$f":"MID(Synthèse!$R$10,2,1)","v":"N"},{"$f":"MID(Synthèse!$R$11,2,1)","v":"N"},{"$f":"MID(Synthèse!$R$12,2,1)","v":"N"},{"$f":"MID(Synthèse!$R$13,2,1)","v":"N"}]
[null,"Envoyer les desserts ",{"$f":"MID(Synthèse!$S$2,2,1)","v":"N"},{"$f":"MID(Synthèse!$S$3,2,1)","v":"N"},{"$f":"MID(Synthèse!$S$4,2,1)","v":"N"},{"$f":"MID(Synthèse!$S$5,2,1)","v":"N"},{"$f":"MID(Synthèse!$S$6,2,1)","v":"N"},{"$f":"MID(Synthèse!$S$7,2,1)","v":"N"},{"$f":"MID(Synthèse!$S$8,2,1)","v":"N"},{"$f":"MID(Synthèse!$S$9,2,1)","v":"N"},{"$f":"MID(Synthèse!$S$10,2,1)","v":"N"},{"$f":"MID(Synthèse!$S$11,2,1)","v":"N"},{"$f":"MID(Synthèse!$S$12,2,1)","v":"N"},{"$f":"MID(Synthèse!$S$13,2,1)","v":"N"}]
[null,"Transmettre et recevoir les informations nécessaires aux besoins du service",{"$f":"MID(Synthèse!$T$2,2,1)","v":"N"},{"$f":"MID(Synthèse!$T$3,2,1)","v":"N"},{"$f":"MID(Synthèse!$T$4,2,1)","v":"N"},{"$f":"MID(Synthèse!$T$5,2,1)","v":"N"},{"$f":"MID(Synthèse!$T$6,2,1)","v":"N"},{"$f":"MID(Synthèse!$T$7,2,1)","v":"N"},{"$f":"MID(Synthèse!$T$8,2,1)","v":"N"},{"$f":"MID(Synthèse!$T$9,2,1)","v":"N"},{"$f":"MID(Synthèse!$T$10,2,1)","v":"N"},{"$f":"MID(Synthèse!$T$11,2,1)","v":"N"},{"$f":"MID(Synthèse!$T$12,2,1)","v":"N"},{"$f":"MID(Synthèse!$T$13,2,1)","v":"N"}]